Workbook

Sheet Lotto4 Blade 2P
A1: IN ROSSO LE OPZIONI 20%
A6: Tecnologie Server1 Lotto4 BL460c Gen9 | D6: Totale Server e Opzioni | F6: 2068 | H6: =F9*SRV_A -> 0
D7: Totale Ulteriori Opzioni | H7: =SUM(G17:G67)*SRV_A -> 0
A8: Components: Server HPE Proliant BL460c Gen9 (1CPU Intel® Xeon® E5-2640 v4, 32GB , 2xHDD 300GB 10K RPM SAS 12Gbps 2.5in) | F8: =SUM(F17:F67) -> 0
D9: TOTALE CONVENZIONE | F9: =SUM(F6:F8) -> 2068 | H9: =H7+H6 -> 0
A12: Proliant BL460c Gen9 | B12: Category: Server Blade
B13: Quantity:
B16: Base
B17: HPE BL460c G9 E5v4 10/20Gb FLB CTO Blade | C17: 1 | E17: 813198-B21
B19: Processore
B20: HPE BL460c Gen9 E5 -2640v4 FIO Kit | C20: 1 | E20: 819839-L21
B22: Processore aggiuntivo
B23: Nessun Processore Aggiuntivo | C23: =VLOOKUP($B$23, CPU_A, 2, FALSE) -> 0 | D23: =VLOOKUP($B$23, CPU_A, 3, FALSE) ->  | E23: =VLOOKUP($B$23, CPU_A, 5, FALSE) ->  | F23: =VLOOKUP(B23, CPU_A, 12, FALSE) -> 0
B25: Memoria Totale in GB | C25: =IF(F23=978,IF(B26=32,"ATTENZIONE: AUMENTARE LA RAM",""),"") -> 
B26: 32
B28: Capacità di memoria
B29: =IF($B$23="Nessun Processore Aggiuntivo",VLOOKUP($B$26, MEM_A1, 8, FALSE),VLOOKUP($B$26, MEM_A2, 8, FALSE)) -> HPE 32GB 2Rx4 PC4-2400T-R Kit | C29: =IF($B$23="Nessun Processore Aggiuntivo",VLOOKUP($B$26, MEM_A1, 9, FALSE),VLOOKUP($B$26, MEM_A2, 9, FALSE)) -> 1 | E29: =IF($B$23="Nessun Processore Aggiuntivo",VLOOKUP($B$26, MEM_A1, 10, FALSE),VLOOKUP($B$26, MEM_A2, 10, FALSE)) -> 805351-B21
B31: =IF($B$23="Nessun Processore Aggiuntivo",VLOOKUP($B$26, MEM_A1, 2, FALSE),VLOOKUP($B$26, MEM_A2, 2, FALSE)) ->  | C31: =IF($B$23="Nessun Processore Aggiuntivo",VLOOKUP($B$26, MEM_A1, 3, FALSE),VLOOKUP($B$26, MEM_A2, 3, FALSE)) ->  | D31: =IF($B$23="Nessun Processore Aggiuntivo",VLOOKUP($B$26, MEM_A1, 4, FALSE),VLOOKUP($B$26, MEM_A2, 4, FALSE)) ->  | E31: =IF($B$23="Nessun Processore Aggiuntivo",VLOOKUP($B$26, MEM_A1, 6, FALSE),VLOOKUP($B$26, MEM_A2, 6, FALSE)) ->  | F31: =IF($B$23="Nessun Processore Aggiuntivo",VLOOKUP($B$26, MEM_A1, 7, FALSE),VLOOKUP($B$26, MEM_A2, 7, FALSE)) -> 
B33: =IF($B$23="Nessun Processore Aggiuntivo",VLOOKUP($B$26, MEM_A1, 11, FALSE),VLOOKUP($B$26, MEM_A2, 11, FALSE)) ->  | C33: =IF($B$23="Nessun Processore Aggiuntivo",VLOOKUP($B$26, MEM_A1, 12, FALSE),VLOOKUP($B$26, MEM_A2, 12, FALSE)) ->  | D33: =IF($B$23="Nessun Processore Aggiuntivo",VLOOKUP($B$26, MEM_A1, 13, FALSE),VLOOKUP($B$26, MEM_A2,13, FALSE)) ->  | E33: =IF($B$23="Nessun Processore Aggiuntivo",VLOOKUP($B$26, MEM_A1, 15, FALSE),VLOOKUP($B$26, MEM_A2, 15, FALSE)) ->  | F33: =IF($B$23="Nessun Processore Aggiuntivo",VLOOKUP($B$26, MEM_A1, 16, FALSE),VLOOKUP($B$26, MEM_A2, 16, FALSE)) -> 
B35: Sistema operativo preinstallato
B36: Nessun Sistema Operativo | C36: =IF($B$23="Nessun Processore Aggiuntivo",VLOOKUP($B$36, OS_A, 2, FALSE),VLOOKUP($B$36, OS_A2, 2, FALSE)) ->  | D36: =IF($B$23="Nessun Processore Aggiuntivo",VLOOKUP($B$36, OS_A, 3, FALSE),VLOOKUP($B$36, OS_A2, 3, FALSE)) ->  | E36: =IF($B$23="Nessun Processore Aggiuntivo",VLOOKUP($B$36, OS_A, 5, FALSE),VLOOKUP($B$36, OS_A2, 5, FALSE)) ->  | F36: =IF($B$23="Nessun Processore Aggiuntivo",VLOOKUP($B$36, OS_A, 6, FALSE),VLOOKUP($B$36, OS_A2, 6, FALSE)) -> 
B37: =IF($B$23="Nessun Processore Aggiuntivo",VLOOKUP($B$36, OS_A, 19, FALSE),VLOOKUP($B$36, OS_A2, 19, FALSE)) ->  | C37: =IF($B$23="Nessun Processore Aggiuntivo",VLOOKUP($B$36, OS_A, 20, FALSE),VLOOKUP($B$36, OS_A2, 20, FALSE)) ->  | D37: =IF($B$23="Nessun Processore Aggiuntivo",VLOOKUP($B$36, OS_A, 21, FALSE),VLOOKUP($B$36, OS_A2, 21, FALSE)) ->  | E37: =IF($B$23="Nessun Processore Aggiuntivo",VLOOKUP($B$36, OS_A, 23, FALSE),VLOOKUP($B$36, OS_A2, 23, FALSE)) ->  | F37: =IF($B$23="Nessun Processore Aggiuntivo",VLOOKUP($B$36, OS_A, 24, FALSE),VLOOKUP($B$36, OS_A2, 24, FALSE)) -> 
B38: =IF($B$23="Nessun Processore Aggiuntivo",VLOOKUP($B$36, OS_A, 25, FALSE),VLOOKUP($B$36, OS_A2, 25, FALSE)) ->  | C38: =IF($B$23="Nessun Processore Aggiuntivo",VLOOKUP($B$36, OS_A, 26, FALSE),VLOOKUP($B$36, OS_A2, 26, FALSE)) ->  | D38: =IF($B$23="Nessun Processore Aggiuntivo",VLOOKUP($B$36, OS_A, 27, FALSE),VLOOKUP($B$36, OS_A2, 27, FALSE)) ->  | E38: =IF($B$23="Nessun Processore Aggiuntivo",VLOOKUP($B$36, OS_A, 29, FALSE),VLOOKUP($B$36, OS_A2, 29, FALSE)) ->  | G38: =IF($B$23="Nessun Processore Aggiuntivo",VLOOKUP($B$36, OS_A, 30, FALSE),VLOOKUP($B$36, OS_A2, 30, FALSE)) -> 
B40: Licenze Accesso Client (CAL)
B41: =VLOOKUP($B$36, OS_A, 7, FALSE) -> None | D41: =VLOOKUP($B$36, OS_A, 9, FALSE) ->  | E41: =VLOOKUP($B$36, OS_A, 11, FALSE) ->  | F41: =VLOOKUP($B$36, OS_A, 12, FALSE)*C41 -> 0
B43: =VLOOKUP($B$36, OS_A, 13, FALSE) -> None | D43: =VLOOKUP($B$36, OS_A, 15, FALSE) ->  | E43: =VLOOKUP($B$36, OS_A, 17, FALSE) ->  | F43: =VLOOKUP($B$36, OS_A, 18, FALSE)*C43 -> 0
B45: Controller RAID
B46: HP H244br FIO Smart HBA | C46: 1 | E46: 761878-B21
B48: Dischi rigidi
B49: =IF(HD1000_A="no","HPE 300GB SAS 10K SFF SC DS HDD","") -> HPE 300GB SAS 10K SFF SC DS HDD | C49: =IF(HD1000_A="no","2","") -> 2 | E49: =IF(HD1000_A="no","872475-B21","") -> 872475-B21
B51: Sostituzione dei 2 dischi da 300GB con 2 dischi da 1.2TB | C51: No
B53: =IF(HD1000_A="Yes","HPE 1.2TB SAS 12G Enterprise 10K SFF (2.5in) SC DS Firmware HDD","") ->  | C53: =IF(HD1000_A="Yes","2","") ->  | D53: =IF(HD1000_A="Yes","TS1L4-HD1200","") ->  | E53: =IF(HD1000_A="Yes","872479-B21","") ->  | F53: =IF(HD1000_A="Yes",398,"") -> 
B55: Scheda FlexibleLOM
B56: HPE FlexFabric 10Gb 2-port 536FLB FIO Adapter | C56: 1 | E56: 766491-B21
B58: Scheda Mezzanine Slot 1
B59: None | C59: =VLOOKUP(B59, PCI_A1, 2, FALSE) ->  | D59: =VLOOKUP(B59, PCI_A1, 3, FALSE) ->  | E59: =VLOOKUP(B59, PCI_A1, 5, FALSE) ->  | G59: =VLOOKUP(B59, PCI_A1, 6, FALSE) -> 
B60: Empty
B62: Scheda Mezzanine Slot 2 | C62: =IF(F23=978,"","LA SCHEDA MEZZANINE NELLO SLOT 2 FUNIZIONA SOLO IN PRESENZA DEL SECONDO PROCESSORE") -> LA SCHEDA MEZZANINE NELLO SLOT 2 FUNIZIONA SOLO IN PRESENZA DEL SECONDO PROCESSORE
B63: HPE QMH2572 8Gb Fibre Channel Host Bus Adapter dual port | C63: 1 | E63: 651281-B21
B65: Estensione di Garanzia
B66: None | C66: =VLOOKUP($B$66, SO_A1, 2, FALSE) ->  | D66: =VLOOKUP($B$66, SO_A1, 3, FALSE) ->  | E66: =VLOOKUP($B$66, SO_A1, 5, FALSE) ->  | F66: =VLOOKUP($B$66, SO_A1, 6, FALSE) -> 

Sheet Lotto4 Blade 4P
A1: IN ROSSO LE OPZIONI 20%
A6: Tecnologie Server1 Lotto4 BL660c Gen9 | D6: Totale Server e Opzioni | F6: 4556 | H6: =F9*SRV_B -> 0
D7: Totale Ulteriori Opzioni | H7: =SUM(G17:G73)*SRV_B -> 0
A8: Components: Server HPE Proliant BL660c Gen9 (2CPU Intel® Xeon® E5-4640 v4, 64GB , 2xHDD 300GB 10K RPM SAS 12Gbps 2.5in) | F8: =SUM(F17:F73) -> 0
D9: TOTALE CONVENZIONE | F9: =SUM(F6:F8) -> 4556 | H9: =H7+H6 -> 0
A12: Proliant BL660c Gen9 | B12: Category: Server Blade
B13: Quantity:
B16: Base
B17: HPE BL660c G9E5-v4 10/20GB FLB CTO Blade | C17: 1 | E17: 844352-B21
B19: Processore
B20: HPE BL660c Gen9 E5-4640v4 2P FIO Kit | C20: 1 | E20: 844373-L21
B22: Processore aggiuntivo
B23: Nessun Processore Aggiuntivo | C23: =VLOOKUP($B$23, CPU_B, 2, FALSE) -> 0 | D23: =VLOOKUP($B$23, CPU_B, 3, FALSE) ->  | E23: =VLOOKUP($B$23, CPU_B, 5, FALSE) -> 0 | F23: =VLOOKUP(B23, CPU_B, 12, FALSE) -> 
B25: Memoria Totale in GB
B26: 64
B28: Capacità di memoria
B29: =IF($B$23="Nessun Processore Aggiuntivo",VLOOKUP($B$26, MEM_B1, 8, FALSE),VLOOKUP($B$26, MEM_B2, 8, FALSE)) -> HPE 32GB 2Rx4 PC4-2400T-R Kit | C29: =IF($B$23="Nessun Processore Aggiuntivo",VLOOKUP($B$26, MEM_B1, 9, FALSE),VLOOKUP($B$26, MEM_B2, 9, FALSE)) -> 2 | E29: =IF($B$23="Nessun Processore Aggiuntivo",VLOOKUP($B$26, MEM_B1, 10, FALSE),VLOOKUP($B$26, MEM_B2, 10, FALSE)) -> 805351-B21
B31: =IF($B$23="Nessun Processore Aggiuntivo",VLOOKUP($B$26, MEM_B1, 2, FALSE),VLOOKUP($B$26, MEM_B2, 2, FALSE)) ->  | C31: =IF($B$23="Nessun Processore Aggiuntivo",VLOOKUP($B$26, MEM_B1, 3, FALSE),VLOOKUP($B$26, MEM_B2, 3, FALSE)) ->  | D31: =IF($B$23="Nessun Processore Aggiuntivo",VLOOKUP($B$26, MEM_B1, 4, FALSE),VLOOKUP($B$26, MEM_B2, 4, FALSE)) ->  | E31: =IF($B$23="Nessun Processore Aggiuntivo",VLOOKUP($B$26, MEM_B1, 6, FALSE),VLOOKUP($B$26, MEM_B2, 6, FALSE)) ->  | F31: =IF($B$23="Nessun Processore Aggiuntivo",VLOOKUP($B$26, MEM_B1, 7, FALSE),VLOOKUP($B$26, MEM_B2, 7, FALSE)) -> 
B33: =IF($B$23="Nessun Processore Aggiuntivo",VLOOKUP($B$26, MEM_B1, 11, FALSE),VLOOKUP($B$26, MEM_B2, 11, FALSE)) ->  | C33: =IF($B$23="Nessun Processore Aggiuntivo",VLOOKUP($B$26, MEM_B1, 12, FALSE),VLOOKUP($B$26, MEM_B2, 12, FALSE)) ->  | D33: =IF($B$23="Nessun Processore Aggiuntivo",VLOOKUP($B$26, MEM_B1, 13, FALSE),VLOOKUP($B$26, MEM_B2,13, FALSE)) ->  | E33: =IF($B$23="Nessun Processore Aggiuntivo",VLOOKUP($B$26, MEM_B1, 15, FALSE),VLOOKUP($B$26, MEM_B2, 15, FALSE)) ->  | F33: =IF($B$23="Nessun Processore Aggiuntivo",VLOOKUP($B$26, MEM_B1, 16, FALSE),VLOOKUP($B$26, MEM_B2, 16, FALSE)) -> 
B35: Sistema operativo preinstallato
B36: Nessun Sistema Operativo | C36: =IF($B$23="Nessun Processore Aggiuntivo",VLOOKUP($B$36, OS_B, 2, FALSE),VLOOKUP($B$36, os_b2, 2, FALSE)) ->  | D36: =IF($B$23="Nessun Processore Aggiuntivo",VLOOKUP($B$36, OS_B, 3, FALSE),VLOOKUP($B$36, os_b2, 3, FALSE)) ->  | E36: =IF($B$23="Nessun Processore Aggiuntivo",VLOOKUP($B$36, OS_B, 5, FALSE),VLOOKUP($B$36, os_b2, 5, FALSE)) ->  | F36: =IF($B$23="Nessun Processore Aggiuntivo",VLOOKUP($B$36, OS_B, 6, FALSE),VLOOKUP($B$36, os_b2, 6, FALSE)) -> 
B37: =IF($B$23="Nessun Processore Aggiuntivo",VLOOKUP($B$36, OS_B, 19, FALSE),VLOOKUP($B$36, os_b2, 19, FALSE)) ->  | C37: =IF($B$23="Nessun Processore Aggiuntivo",VLOOKUP($B$36, OS_B, 20, FALSE),VLOOKUP($B$36, os_b2, 20, FALSE)) ->  | D37: =IF($B$23="Nessun Processore Aggiuntivo",VLOOKUP($B$36, OS_B, 21, FALSE),VLOOKUP($B$36, os_b2, 21, FALSE)) ->  | E37: =IF($B$23="Nessun Processore Aggiuntivo",VLOOKUP($B$36, OS_B, 23, FALSE),VLOOKUP($B$36, os_b2, 23, FALSE)) ->  | F37: =IF($B$23="Nessun Processore Aggiuntivo",VLOOKUP($B$36, OS_B, 24, FALSE),VLOOKUP($B$36, os_b2, 24, FALSE)) -> 
B38: =IF($B$23="Nessun Processore Aggiuntivo",VLOOKUP($B$36, OS_B, 25, FALSE),VLOOKUP($B$36, os_b2, 25, FALSE)) ->  | C38: =IF($B$23="Nessun Processore Aggiuntivo",VLOOKUP($B$36, OS_B, 26, FALSE),VLOOKUP($B$36, os_b2, 26, FALSE)) ->  | D38: =IF($B$23="Nessun Processore Aggiuntivo",VLOOKUP($B$36, OS_B, 27, FALSE),VLOOKUP($B$36, os_b2, 27, FALSE)) ->  | E38: =IF($B$23="Nessun Processore Aggiuntivo",VLOOKUP($B$36, OS_B, 29, FALSE),VLOOKUP($B$36, os_b2, 29, FALSE)) ->  | G38: =IF($B$23="Nessun Processore Aggiuntivo",VLOOKUP($B$36, OS_B, 30, FALSE),VLOOKUP($B$36, os_b2, 30, FALSE)) -> 
B40: Licenze Accesso Client (CAL)
B41: =VLOOKUP($B$36, OS_A, 7, FALSE) -> None | D41: =VLOOKUP($B$36, OS_A, 9, FALSE) ->  | E41: =VLOOKUP($B$36, OS_A, 11, FALSE) ->  | F41: =VLOOKUP($B$36, OS_A, 12, FALSE)*C41 -> 0
B43: =VLOOKUP($B$36, OS_A, 13, FALSE) -> None | D43: =VLOOKUP($B$36, OS_A, 15, FALSE) ->  | E43: =VLOOKUP($B$36, OS_A, 17, FALSE) ->  | F43: =VLOOKUP($B$36, OS_A, 18, FALSE)*C43 -> 0
B45: Controller RAID
B46: HP H244br FIO Smart HBA | C46: 1 | E46: 761878-B21
B48: Dischi rigidi
B49: =IF(HD1000_B="no","HPE 300GB SAS 10K SFF SC DS HDD","") -> HPE 300GB SAS 10K SFF SC DS HDD | C49: =IF(HD1000_B="no","2","") -> 2 | E49: =IF(HD1000_B="no","872475-B21","") -> 872475-B21
B51: Sostituzione dei 2 dischi da 300GB con 2 dischi da 1.2TB | C51: No
B53: =IF(HD1000_B="Yes","HPE 1.2TB SAS 12G Enterprise 10K SFF (2.5in) SC DS Firmware HDD","") ->  | C53: =IF(HD1000_B="Yes","2","") ->  | D53: =IF(HD1000_B="Yes","TS1L4-HD1200","") ->  | E53: =IF(HD1000_B="Yes","872479-B21","") ->  | F53: =IF(HD1000_B="Yes",398,"") -> 
B55: Scheda FlexibleLOM
B56: HPE FlexFabric 10Gb 2-port 536FLB FIO Adapter | C56: 1 | E56: 766491-B21
B58: HPE FlexFabric 10Gb 2-port 536FLB Adapter | C58: 1 | E58: 766490-B21
B60: Scheda Mezzanine Slot 1
B61: None | C61: =VLOOKUP(B61, PCI_A1, 2, FALSE) ->  | D61: =VLOOKUP(B61, PCI_A1, 3, FALSE) ->  | E61: =VLOOKUP(B61, PCI_A1, 5, FALSE) ->  | G61: =VLOOKUP(B61, PCI_A1, 6, FALSE) -> 
B62: None | C62: =VLOOKUP(B62, PCI_A1, 2, FALSE) ->  | D62: =VLOOKUP(B62, PCI_A1, 3, FALSE) ->  | E62: =VLOOKUP(B62, PCI_A1, 5, FALSE) ->  | G62: =VLOOKUP(B62, PCI_A1, 6, FALSE) -> 
B64: Scheda Mezzanine Slot 2
B65: None | C65: =VLOOKUP(B65, PCI_A1, 2, FALSE) ->  | D65: =VLOOKUP(B65, PCI_A1, 3, FALSE) ->  | E65: =VLOOKUP(B65, PCI_A1, 5, FALSE) ->  | G65: =VLOOKUP(B65, PCI_A1, 6, FALSE) -> 
B66: None | C66: =VLOOKUP(B66, PCI_A1, 2, FALSE) ->  | D66: =VLOOKUP(B66, PCI_A1, 3, FALSE) ->  | E66: =VLOOKUP(B66, PCI_A1, 5, FALSE) ->  | G66: =VLOOKUP(B66, PCI_A1, 6, FALSE) -> 
B68: Scheda Mezzanine Slot 3
B69: HPE QMH2572 8Gb Fibre Channel Host Bus Adapter dual port | C69: 1 | E69: 651281-B21
B71: Estensione di Garanzia
B72: None | C72: =VLOOKUP($B$72, SO_A1, 2, FALSE) ->  | D72: =VLOOKUP($B$72, SO_A1, 3, FALSE) ->  | E72: =VLOOKUP($B$72, SO_A1, 5, FALSE) ->  | F72: =VLOOKUP($B$72, SO_A1, 6, FALSE) -> 

Sheet Chassis
A1: IN ROSSO LE OPZIONI 20%
A6: Tecnologie Server1 Lotto4 Chassis
D11: Totale Chassis | F11: =SUM(F17:F61) -> 3185 | H11: =F11*SRV_c -> 0
A12: Components: HPE BladeSystem c3000 Enclosure | D12: Totale Ulteriori Opzioni | H12: =SUM(G22:G82)*SRV_c -> 0
D14: TOTALE CONVENZIONE | H14: =H12+H11 -> 0
A16: BL3000c | B16: Category: Blade Chassis
B17: Quantity: | F17: 3185
B18: =IF(SRV_c<=SRV_B+SRV_A,"","ATTENZIONE: IL NUMERO DEGLI CHASSIS DEVE ESSERE INFERIORE O UGUALE AL NUMERO DI BLADE") -> 
B20: Base
B21: HPE BLc3000 Platinum Configure-to-order Enclosure | C21: 1 | E21: 696910-B21
B23: Alimentatore
B24: HPE 1200W Common Slot Platinum Plus Hot Plug Power Supply Kit | C24: 6 | E24: 656364-B21
B26: Redundant Onboard Administrator
B27: None | C27: =VLOOKUP($B$27, OAkit, 2, FALSE) -> 0 | D27: =VLOOKUP($B$27, OAkit, 3, FALSE) ->  | E27: =VLOOKUP($B$27, OAkit, 5, FALSE) -> 0 | G27: =VLOOKUP(B27, OAkit, 12, FALSE) -> 
B29: KVM Modules
B30: None | C30: =VLOOKUP($B$30, KVMKit, 2, FALSE) -> 0 | D30: =VLOOKUP($B$30, KVMKit, 3, FALSE) ->  | E30: =VLOOKUP($B$30, KVMKit, 5, FALSE) -> 0 | G30: =VLOOKUP(B30, KVMKit, 12, FALSE) -> 
B32: Interconnect Bay 1
B33: HPE 10GbE Ethernet Pass-Thru Module II for c-Class BladeSystem | C33: =VLOOKUP($B$33, IntBay1, 2, FALSE) -> 1 | D33: =VLOOKUP($B$33, IntBay1, 3, FALSE) ->  | E33: =VLOOKUP($B$33, IntBay1, 5, FALSE) ->  | G33: =VLOOKUP(B33, IntBay1, 12, FALSE) -> 0
B35: Interconnect Bay 2
B36: None | C36: =VLOOKUP($B$36, PassThru, 2, FALSE) -> 0 | D36: =VLOOKUP($B$36, PassThru, 3, FALSE) ->  | E36: =VLOOKUP($B$36, PassThru, 5, FALSE) -> 0 | G36: =VLOOKUP(B36, PassThru, 12, FALSE) -> 
B37: Empty
B39: Interconnect Bay 3
B40: Brocade 8/12c SAN Switch for BladeSystem c-Class | C40: 1 | E40: 684208-B21
B42: Upgrade Switch port License
B43: Brocade 8/16Gb Embedded FC Switch 12-port Upgrade E-LTU | C43: No | D43: =IF(C43="No","","S4-T5517AAE") ->  | E43: =IF(C43="No","","T5517AAE") ->  | G43: =IF(C43="No","",3328) -> 
B45: Interconnect Bay 4
B46: Brocade 8/12c SAN Switch for BladeSystem c-Class | C46: 1 | E46: 684208-B21
B48: Upgrade Switch port License
B49: Brocade 8/16Gb Embedded FC Switch 12-port Upgrade E-LTU | C49: No | D49: =IF(C49="No","","S4-T5517AAE") ->  | E49: =IF(C49="No","","T5517AAE") ->  | G49: =IF(C49="No","",3328) -> 
B51: Additional Fiber Optic Modules
B52: HPE BladeSystem c-Class 10Gb SFP+ SR Transceiver | C52: =IF(SRV_A*2+SRV_B*4>16,16,SRV_A*2+SRV_B*4) -> 0 | E52: 455883-B21
B53: HPE BladeSystem c-Class Virtual Connect 1G SFP RJ-45 Transceiver | D53: S4-453154-B21 | E53: 453154-B21 | G53: =Processor!L38*Chassis!C53 -> 0
B55: HPE BLc 10G SFP+ SR Transceiver | D55: S4-455883-B21 | E55: 455883-B21 | G55: =Processor!L39*Chassis!C55 -> 0
B57: HPE 10GBase-T SFP+ Transceiver | D57: S4-813874-B21 | E57: 813874-B21 | G57: =Processor!L40*Chassis!C57 -> 0
B59: Estensione di Garanzia
B60: None | C60: =VLOOKUP($B$60, SO_A1, 2, FALSE) ->  | D60: =VLOOKUP($B$60, SO_A1, 3, FALSE) ->  | E60: =VLOOKUP($B$60, SO_A1, 5, FALSE) ->  | F60: =VLOOKUP($B$60, SO_A1, 6, FALSE) -> 

Sheet Riepilogo
B1: Amministrazione | R1: CONFIGURATORE ELETTRONICO CONVENZIONE CONSIP TECNOLOGIE SERVER 1 LOTTO 4 | V1: 1
B2: N° Identificativo Ordine | I2: =IF(G4=R53,"Configurazione OK",U4) -> Configurazione OK | V2: 1
B3: Data Ordine | V3: 1
B4: Tot Ordine Portale CONSIP IVA incl. | G4: =R53 -> 0 | U4: Nel "Tot Ordine Portale CONSIP" deve essere inserito l'importo totale risultante dall'ordinativo del portale CONSIP. Qualora l'importo inserito corrisponde al valore ricalcolato dal configuratore viene attivato il pulsante "Salva in formato PDF" che permette di generare il file pdf da allegare all'ordinativo. | V4: 1 | W4: Il totale dei prodotti "OPZIONALI ULTERIORI" supera il 20 % consentito
B5: LE CELLE IN GIALLO DEVO ESSERE COMPILATE OBBLIGATORIAMENTE | V5: 1
B6: Quantità Server Ordinati | G6: =IF(B20="",0,B20)+IF(B14="",0,B14) -> 0 | T6: ver. 2.5 | V6: 1 | W6: =IF(I2=W4,1,0) -> 0
V7: 1 | W7: =IF(I2="Configurazione OK",1,0) -> 1
B8: Referente per la Consegna | J8: Telefono | P8: email | V8: 1 | W8: =SUM(W6:W7) -> 1 | X8: =IF(W8=1,"OK","NO") -> OK
V9: 1
B10: Referente per l'installazione | J10: Telefono | P10: email | V10: 1
V11: 1
B12: Qtà Totale Ordinata | C12: Oggetto di fornitura | G12: Codice Prodotto | J12: Descrizione Sintetica (si faccia riferimento alla guida alla convenzione per la descrizione estesa e per le regole di acquisto delle opzioni) | R12: Costo Unitario | T12: Costo Complessivo | V12: 1
B13: SERVER BLADE 2 PROCESSORI (HPE Proliant BL460c Gen9) | V13: =IF(B14>="",0,1) -> 0 | X13: Server1
B14: =IF(AA14>=1,AA14,"") ->  | C14: =IF(AA14>0,(VLOOKUP(G14,COD_A,2,FALSE)),"") ->  | G14: =IF(AA14>=1,W14,"") ->  | J14: =IF(AA14>0,(VLOOKUP(G14,COD_A,5,FALSE)),"") ->  | R14: =IF(AA14>0,(VLOOKUP(G14,COD_A,3,FALSE)),"") ->  | T14: =IF(B14="","",R14*B14) ->  | V14: =IF(B14>="",0,1) -> 0 | W14: TS1L4-2P | X14: =SRV_A -> 0 | AA14: =SUM(X14:Z14) -> 0
B15: =IF(AA15>=1,AA15,"") ->  | C15: =IF(AA15>0,(VLOOKUP(G15,COD_A,2,FALSE)),"") ->  | G15: =IF(AA15>=1,W15,"") ->  | J15: =IF(AA15>0,(VLOOKUP(G15,COD_A,5,FALSE)),"") ->  | R15: =IF(AA15>0,(VLOOKUP(G15,COD_A,3,FALSE)),"") ->  | T15: =IF(B15="","",R15*B15) ->  | V15: =IF(B15>="",0,1) -> 0 | W15: TS1L4-CPU-2P | X15: ='Lotto4 Blade 2P'!$C$23 -> 0 | Z15: =X15*$X$14 -> 0 | AA15: =SUM(Z15:Z15) -> 0
B16: =IF(AA16>=1,AA16,"") ->  | C16: =IF(AA16>0,(VLOOKUP(G16,COD_A,2,FALSE)),"") ->  | G16: =IF(AA16>=1,W16,"") ->  | J16: =IF(AA16>0,(VLOOKUP(G16,COD_A,5,FALSE)),"") ->  | R16: =IF(AA16>0,(VLOOKUP(G16,COD_A,3,FALSE)),"") ->  | T16: =IF(B16="","",R16*B16) ->  | V16: 0 | W16: TS1L4-32GB | X16: =IF(MEM_A="",0,MEM_A) -> 0 | Z16: =X16*$X$14 -> 0 | AA16: =SUM(Z16:Z16) -> 0
B17: =IF(AA17>=1,AA17,"") ->  | C17: =IF(AA17>0,(VLOOKUP(G17,COD_A,2,FALSE)),"") ->  | G17: =IF(AA17>=1,W17,"") ->  | J17: =IF(AA17>0,(VLOOKUP(G17,COD_A,5,FALSE)),"") ->  | R17: =IF(AA17>0,(VLOOKUP(G17,COD_A,3,FALSE)),"") ->  | T17: =IF(B17="","",R17*B17) ->  | V17: 0 | W17: TS1L4-64GB | X17: =IF('Lotto4 Blade 2P'!C33="",0,'Lotto4 Blade 2P'!C33) -> 0 | Y17: =IF('Lotto4 Blade 2P'!F31>5880,MEM_A,0) ->  | Z17: =X17*$X$14 -> 0 | AA17: =SUM(Z17:Z17) -> 0
B18: =IF(AA18>=1,AA18,"") ->  | C18: =IF(AA18>0,(VLOOKUP(G18,COD_A,2,FALSE)),"") ->  | G18: =IF(AA18>=1,W18,"") ->  | J18: =IF(AA18>0,(VLOOKUP(G18,COD_A,5,FALSE)),"") ->  | R18: =IF(AA18>0,(VLOOKUP(G18,COD_A,3,FALSE)),"") ->  | T18: =IF(B18="","",R18*B18) ->  | V18: 0 | W18: TS1L4-HD1200 | X18: =IF(HD1000_A="yes",'Lotto4 Blade 2P'!$C$53/2,0) -> 0 | Z18: =X18*$X$14 -> 0 | AA18: =SUM(Z18:Z18) -> 0
B19: SERVER BLADE 4 PROCESSORI (HPE Proliant BL660c Gen9) | V19: =IF(B20>="",0,1) -> 0 | X19: Server1
B20: =IF(AA20>=1,AA20,"") ->  | C20: =IF(AA20>0,(VLOOKUP(G20,COD_A,2,FALSE)),"") ->  | G20: =IF(AA20>=1,W20,"") ->  | J20: =IF(AA20>0,(VLOOKUP(G20,COD_A,5,FALSE)),"") ->  | R20: =IF(AA20>0,(VLOOKUP(G20,COD_A,3,FALSE)),"") ->  | T20: =IF(B20="","",R20*B20) ->  | V20: 0 | W20: TS1L4-4P | X20: =SRV_B -> 0 | AA20: =SUM(X20:Z20) -> 0
B21: =IF(AA21>=1,AA21,"") ->  | C21: =IF(AA21>0,(VLOOKUP(G21,COD_A,2,FALSE)),"") ->  | G21: =IF(AA21>=1,W21,"") ->  | J21: =IF(AA21>0,(VLOOKUP(G21,COD_A,5,FALSE)),"") ->  | R21: =IF(AA21>0,(VLOOKUP(G21,COD_A,3,FALSE)),"") ->  | T21: =IF(B21="","",R21*B21) ->  | V21: =IF(B21>="",0,1) -> 0 | W21: TS1L4-CPU-4P | X21: ='Lotto4 Blade 4P'!C23/2 -> 0 | Z21: =X21*$X$20 -> 0 | AA21: =SUM(Z21:Z21) -> 0
B22: =IF(AA22>=1,AA22,"") ->  | C22: =IF(AA22>0,(VLOOKUP(G22,COD_A,2,FALSE)),"") ->  | G22: =IF(AA22>=1,W22,"") ->  | J22: =IF(AA22>0,(VLOOKUP(G22,COD_A,5,FALSE)),"") ->  | R22: =IF(AA22>0,(VLOOKUP(G22,COD_A,3,FALSE)),"") ->  | T22: =IF(B22="","",R22*B22) ->  | V22: 0 | W22: TS1L4-32GB | X22: =IF(MEM_B="",0,MEM_B) -> 0 | Z22: =X22*$X$20 -> 0 | AA22: =SUM(Z22:Z22) -> 0 | AE22: =IF(AA22>0,(VLOOKUP(W22,COD_A,5,FALSE)),"") -> 
B23: =IF(AA23>=1,AA23,"") ->  | C23: =IF(AA23>0,(VLOOKUP(G23,COD_A,2,FALSE)),"") ->  | G23: =IF(AA23>=1,W23,"") ->  | J23: =IF(AA23>0,(VLOOKUP(G23,COD_A,5,FALSE)),"") ->  | R23: =IF(AA23>0,(VLOOKUP(G23,COD_A,3,FALSE)),"") ->  | T23: =IF(B23="","",R23*B23) ->  | V23: 0 | W23: TS1L4-64GB | X23: =IF('Lotto4 Blade 4P'!C33="",0,'Lotto4 Blade 4P'!C33) -> 0 | Y23: =IF('Lotto4 Blade 4P'!G31=Riepilogo!W23,0,MEM_B) ->  | Z23: =X23*$X$20 -> 0 | AA23: =SUM(Z23:Z23) -> 0
B24: =IF(AA24>=1,AA24,"") ->  | C24: =IF(AA24>0,(VLOOKUP(G24,COD_A,2,FALSE)),"") ->  | G24: =IF(AA24>=1,W24,"") ->  | J24: =IF(AA24>0,(VLOOKUP(G24,COD_A,5,FALSE)),"") ->  | R24: =IF(AA24>0,(VLOOKUP(G24,COD_A,3,FALSE)),"") ->  | T24: =IF(B24="","",R24*B24) ->  | V24: 0 | W24: TS1L4-HD1200 | X24: =IF(HD1000_B="yes",'Lotto4 Blade 4P'!$C$53/2,0) -> 0 | Z24: =X24*$X$20 -> 0 | AA24: =SUM(Z24:Z24) -> 0
B25: OPZIONI COMUNI | V25: =IF(B25>=0,1,0) -> 1 | X25: 2P | Y25: 4P
B26: =IF(AA26>=1,AA26,"") ->  | C26: =IF(AA26>0,(VLOOKUP(G26,COD_A,2,FALSE)),"") ->  | G26: =IF(AA26>=1,W26,"") ->  | J26: =IF(AA26>0,(VLOOKUP(G26,COD_A,5,FALSE)),"") ->  | R26: =IF(AA26>0,(VLOOKUP(G26,COD_A,3,FALSE)),"") ->  | T26: =IF(B26="","",R26*B26) ->  | V26: 0 | W26: TS1L4-CHASSIS | X26: =Chassis!$C$17 -> 0 | AA26: =X26 -> 0 | AB26: =X26 -> 0 | AC26: =Z26*$X$20 -> 0 | AH26: =SUM(AB26:AD26) -> 0
B27: =IF(AH27=0,"",AH27) ->  | J27: =IF(AH27>0,(VLOOKUP(G27,COD_A,5,FALSE)),"") ->  | R27: =IF(AH27>0,(VLOOKUP(G27,COD_A,3,FALSE)),"") ->  | V27: 0 | W27: TS1L4-WIN1 | X27: =IF('Lotto4 Blade 2P'!$F$36=543,1,0) -> 0 | Y27: =IF('Lotto4 Blade 4P'!$F$36=543,1,0) -> 0 | AA27: =SUM(X27:Z27) -> 0 | AB27: =X27*$X$14 -> 0 | AC27: =Y27*$X$20 -> 0 | AH27: 0
V28: 0 | W28: TS1L4-WIN2 | X28: =IF('Lotto4 Blade 2P'!$F$37=543,1,0) -> 0 | Y28: =IF('Lotto4 Blade 4P'!$F$37=1086,2,0) -> 0 | AA28: =SUM(X28:Z28) -> 0 | AB28: 0 | AC28: 0 | AH28: 0
V29: 0 | W29: TS1L4-WIN2CORE | X29: =IF('Lotto4 Blade 2P'!$F$37=108,2,0) -> 0 | Y29: =IF('Lotto4 Blade 4P'!$F$37=216,4,0) -> 0 | AA29: 0 | AB29: 0 | AC29: 0 | AH29: 0
V30: 0 | W30: TS1L4-WINDC1 | X30: =IF('Lotto4 Blade 2P'!$F$36=2174,1,0) -> 0 | Y30: =IF('Lotto4 Blade 4P'!$F$36=2174,1,0) -> 0 | AA30: 0 | AB30: 0 | AC30: 0 | AH30: 0
V31: 0 | W31: TS1L4-WINDC2 | X31: =IF('Lotto4 Blade 2P'!$F$37=2174,2,0) -> 0 | Y31: =IF('Lotto4 Blade 4P'!$F$37=2174,1,(IF('Lotto4 Blade 4P'!$F$37=4348,2,0))) -> 0 | AA31: 0 | AB31: 0 | AC31: 0 | AH31: 0
V32: 0 | W32: TS1L4-CALUSER | X32: ='Lotto4 Blade 2P'!C41 -> 0 | Y32: ='Lotto4 Blade 4P'!C41 -> 0 | AA32: 0 | AB32: 0 | AC32: 0 | AH32: 0
B33: =IF(AH33=0,"",AH33) ->  | V33: 0 | W33: TS1L4-CALDEV | X33: ='Lotto4 Blade 2P'!C43 -> 0 | Y33: ='Lotto4 Blade 4P'!C43 -> 0 | AA33: 0 | AB33: 0 | AC33: 0 | AH33: 0
V34: 0 | W34: TS1L4-LINUX | X34: =IF('Lotto4 Blade 2P'!$F$36=47,1,0) -> 0 | Y34: =IF('Lotto4 Blade 4P'!$F$36=47,1,0) -> 0 | AA34: 0 | AB34: 0 | AC34: 0 | AH34: 0
V35: 0 | W35: TS1L4-4ANNI | X35: =IF('Lotto4 Blade 2P'!$F$66=327,1,0) -> 0 | Y35: =IF('Lotto4 Blade 4P'!$F$72=327,1,0) -> 0 | Z35: =IF(Chassis!F60=327,1,0) -> 0 | AA35: 0 | AB35: =X35*$X$14 -> 0 | AC35: =Y35*$X$20 -> 0 | AD35: =Z35*X26 -> 0 | AH35: =SUM(AB35:AD35) -> 0
V36: 0 | W36: TS1L4-5ANNI | X36: =IF('Lotto4 Blade 2P'!$F$66=610,1,0) -> 0 | Y36: =IF('Lotto4 Blade 4P'!$F$72=610,1,0) -> 0 | Z36: =IF(Chassis!F60=610,1,0) -> 0 | AA36: 0 | AB36: =X36*$X$14 -> 0 | AC36: =Y36*$X$20 -> 0 | AD36: =Z36*X26 -> 0 | AH36: =SUM(AB36:AD36) -> 0
B37: ULTERIORI OPZIONI | V37: =IF(SUM(V38:V48)>=1,1,0) -> 0
C38: =IF(AA38>0,(VLOOKUP(G38,COD_A,2,FALSE)),"") ->  | G38: =IF(AA38>=1,W38,"") ->  | J38: =IF(AH38>0,(VLOOKUP(G38,COD_A,5,FALSE)),"") ->  | R38: =IF(AH38>0,(VLOOKUP(G38,COD_A,3,FALSE)),"") ->  | T38: =IF(B38="","",R38*B38) ->  | V38: =IF(B38>="",0,1) -> 0 | W38: S4-871168-A21 | X38: =IF('Lotto4 Blade 2P'!$G$38=1060,2,0) -> 0 | Y38: =IF('Lotto4 Blade 4P'!$G$38=610,1,0) -> 0 | AA38: =SUM(X38:Z38) -> 0 | AB38: =X38*$X$14 -> 0 | AC38: =Y38*$X$20 -> 0 | AH38: =SUM(AB38:AD38) -> 0
B39: =IF(AH39=0,"",AH39) ->  | G39: =IF(AA39>=1,W39,"") ->  | V39: 0 | W39: S4-488100-B21 | Z39: =Chassis!C27 -> 0 | AA39: 0 | AB39: 0 | AC39: =Y39*$X$14 -> 0 | AD39: =Z39*$X$26 -> 0 | AH39: 0
G40: =IF(AA40>=1,W40,"") ->  | V40: 0 | W40: S4-437575-B21 | Z40: =Chassis!C30 -> 0 | AA40: 0 | AB40: 0 | AC40: 0 | AD40: 0 | AH40: 0
G41: =IF(AA41>=1,W41,"") ->  | V41: 0 | W41: S4-854194-B21 | X41: =Chassis!D33 ->  | Z41: =COUNTIF($X$41:$X$43,W41) -> 0 | AA41: 0 | AD41: 0 | AH41: 0
G42: =IF(AA42>=1,W42,"") ->  | J42: =IF(AH42>0,(VLOOKUP(G42,COD_A,5,FALSE)),"") ->  | R42: =IF(AH42>0,(VLOOKUP(G42,COD_A,3,FALSE)),"") ->  | V42: 0 | W42: S4-641146 | X42: =Chassis!D36 ->  | Z42: =COUNTIF($X$41:$X$43,W42) -> 0 | AA42: 0 | AD42: 0 | AH42: 0
B43: =IF(AH43=0,"",AH43) ->  | V43: 0 | W43: S4-638526-B21 | Z43: 0 | AA43: =SUM(X43:Z43) -> 0 | AB43: 0 | AC43: 0 | AD43: 0 | AH43: 0
B44: =IF(AH44=0,"",AH44) ->  | V44: 0 | W44: S4-813874-B21 | Z44: =Chassis!C57 -> 0 | AA44: =SUM(Y44:Z44) -> 0 | AB44: =X44*$X$26 -> 0 | AC44: 0 | AD44: 0 | AH44: 0
B45: =IF(AH45=0,"",AH45) ->  | V45: 0 | W45: S4-455883-B21 | Z45: =Chassis!C55 -> 0 | AA45: =SUM(Y45:Z45) -> 0 | AB45: =X45*$X$26 -> 0 | AC45: 0 | AD45: 0 | AH45: 0
B46: =IF(AH46=0,"",AH46) ->  | V46: 0 | W46: S4-T5517AAE | Y46: =IF(Chassis!$D$49=W46,1,0) -> 0 | Z46: =IF(Chassis!$D$43=W46,1,0) -> 0 | AA46: =SUM(Y46:Z46) -> 0 | AB46: =X46*$X$26 -> 0 | AC46: =Y46*$X$26 -> 0 | AD46: 0 | AH46: 0
B47: =IF(AH47=0,"",AH47) ->  | V47: 0 | W47: S4-453154-B21 | Z47: =Chassis!C53 -> 0 | AA47: =SUM(Y47:Z47) -> 0 | AB47: =X47*$X$26 -> 0 | AC47: =Y47*$X$14 -> 0 | AD47: 0 | AH47: 0
G48: =IF(AA48>=1,W48,"") ->  | V48: 0 | W48: S4-665246-B21 | X48: =IF('Lotto4 Blade 2P'!$D$59=W48,1,0) -> 0 | Y48: =IF('Lotto4 Blade 4P'!$D$62=W48,1,0)+(IF('Lotto4 Blade 4P'!$D$66=W48,1,0)) -> 0 | AA48: 0 | AB48: =X48*$X$14 -> 0 | AC48: =Y48*$X$20 -> 0 | AH48: 0
G49: =IF(AA49>=1,W49,"") ->  | V49: 0 | W49: S4-700748-B21 | X49: =IF('Lotto4 Blade 2P'!$D$59=W49,1,0) -> 0 | Y49: =IF('Lotto4 Blade 4P'!$D$62=W49,1,0)+(IF('Lotto4 Blade 4P'!$D$66=W49,1,0)) -> 0 | AA49: 0 | AB49: =X49*$X$14 -> 0 | AC49: =Y49*$X$20 -> 0 | AH49: 0
B50: TOTALE ULTERIORI OPZIONI (I.V.A. Esclusa) | R50: =SUM(T38:U49) -> 0 | V50: =IF(R50>0,1,0) -> 0
B51: TOTALE COSTO (I.V.A. Esclusa) | R51: =SUM(T14:U36) -> 0 | V51: 1
B52: I.V.A. | R52: =(R51+R50)*22% -> 0 | V52: 1
B53: TOTALE ORDINE | R53: =SUM(R50:U52) -> 0 | V53: 1
V54: 1
V55: 1
V56: 1
D57: =IF(G6>0,"DETTAGLIO CONFIGURAZIONI SERVER LOTTO 4 ","") ->  | V57: 1
V58: 1
V59: 1
V60: =IF($B$14>="",0,1) -> 0 | X60: Gbic vuoti Chassies | Y60: gbic 4P | Z60: gbic 2P
B61: Proliant BL460c Gen9 | E61: =SRV_A -> 0 | F61: Server | I61: Proliant BL660c Gen9 | L61: =SRV_B -> 0 | M61: Server | P61: Chassis | S61: =SRV_c -> 0 | V61: =IF($B$14>="",0,1) -> 0 | X61: =S61*16 -> 0 | Y61: =L61*4 -> 0 | Z61: =E61*2 -> 0 | AA61: =SUM(Y61:Z61) -> 0 | AB61: =IF(X61>AA61,AA61,X61) -> 0
V62: =IF($B$14>="",0,1) -> 0
B63: =IF(SRV_A>0,"1","-") -> - | C63: =IF(B63="-","-",CONCATENATE(MID($C$14,1,21)," - ",$G$14)) -> - | I63: =IF(SRV_B>0,"1","-") -> - | J63: =IF(I63="-","-",CONCATENATE(MID($C$20,1,21)," - ",$G$20)) -> - | P63: =IF(SRV_c>0,"1","-") -> - | Q63: =IF(P63="-","-",CONCATENATE(MID($C$26,1,21)," - ",$G$26)) -> - | V63: =IF($B$14>="",0,1) -> 0
B64: =IF(X15=0,"-",X15) -> - | C64: =IF(B64="-","-",CONCATENATE(MID($C$15,1,21)," - ",$G$15)) -> - | I64: =IF(X21=0,"-",X21) -> - | J64: =IF(I64="-","-",CONCATENATE(MID($C21,1,21)," - ",$G21)) -> - | P64: =AB61 -> 0 | V64: =IF(Y64+X64+W64>0,1,0) -> 0 | W64: =IF(B64="-",0,1) -> 0 | X64: =IF(I64="-",0,1) -> 0 | Y64: =IF(P64=0,0,1) -> 0
B65: =IF(X16=0,"-",X16) -> - | C65: =IF(B65="-","-",CONCATENATE(MID($C$16,1,21)," - ",$G$16)) -> - | I65: =IF(X22=0,"-",X22) -> - | J65: =IF(I65="-","-",CONCATENATE(MID($C22,1,21)," - ",$G22)) -> - | P65: =IF(Z41=0,"-",Z41) -> - | Q65: =IF(P65="-","-",CONCATENATE(MID($C41,1,21)," - ",$G41)) -> - | V65: =IF(Y65+X65+W65>0,1,0) -> 1 | W65: =IF(B65="-",0,1) -> 0 | X65: =IF(I65="-",0,1) -> 0 | Y65: =IF(P65=0,0,1) -> 1
B66: =IF(X17=0,"-",X17) -> - | C66: =IF(B66="-","-",CONCATENATE(MID($C17,1,21)," - ",$G17)) -> - | I66: =IF(X23=0,"-",X23) -> - | J66: =IF(I66="-","-",CONCATENATE(MID($C23,1,21)," - ",$G23)) -> - | P66: - | Q66: - | V66: 0 | W66: 0 | X66: 0 | Y66: =IF(P66="-",0,1) -> 0
B67: =IF(X18=0,"-",X18) -> - | C67: =IF(B67="-","-",CONCATENATE(MID($C18,1,21)," - ",$G18)) -> - | I67: =IF(X24=0,"-",X24) -> - | J67: =IF(I67="-","-",CONCATENATE(MID($C24,1,21)," - ",$G24)) -> - | P67: - | Q67: - | V67: 0 | W67: 0 | X67: 0 | Y67: =IF(P67="-",0,1) -> 0
B68: =IF(X27=0,"-",X27) -> - | C68: =IF(B68="-","-",CONCATENATE(MID($C27,1,21)," - ",$G27)) -> - | I68: =IF(Y27=0,"-",Y27) -> - | J68: =IF(I68="-","-",CONCATENATE(MID($C27,1,21)," - ",$G27)) -> - | P68: - | Q68: - | V68: 0 | W68: 0 | X68: 0 | Y68: 0
B69: - | C69: - | I69: - | J69: - | P69: - | Q69: - | V69: 0 | W69: 0 | X69: 0 | Y69: 0
B70: - | C70: - | I70: - | J70: - | P70: - | Q70: - | V70: 0 | W70: 0 | X70: 0 | Y70: 0
B71: - | C71: - | I71: - | J71: - | P71: - | Q71: - | V71: 0 | W71: 0 | X71: 0 | Y71: 0
B72: - | C72: - | I72: - | J72: - | P72: - | Q72: - | V72: 0 | W72: 0 | X72: 0 | Y72: 0
B73: - | C73: - | I73: - | J73: - | P73: - | Q73: - | V73: 0 | W73: 0 | X73: 0 | Y73: 0
B74: - | C74: - | I74: - | J74: - | P74: - | Q74: - | V74: 0 | W74: 0 | X74: 0 | Y74: 0
B75: - | C75: - | I75: - | J75: - | P75: - | Q75: - | V75: 0 | W75: 0 | X75: 0 | Y75: 0
B76: - | C76: - | I76: - | J76: - | P76: =IF(Z35=0,"-",Z35) -> - | Q76: =IF(P76="-","-",CONCATENATE(MID($C35,1,21)," - ",$G35)) -> - | V76: 0 | W76: 0 | X76: 0 | Y76: 0
B77: - | C77: - | I77: - | J77: - | P77: =IF(Z36=0,"-",Z36) -> - | Q77: =IF(P77="-","-",CONCATENATE(MID($C36,1,21)," - ",$G36)) -> - | V77: 0 | W77: 0 | X77: 0 | Y77: 0
B78: - | C78: - | I78: - | J78: - | V78: 1 | W78: 0 | X78: 0 | Y78: 1
B79: - | C79: - | I79: =IF(Y38=0,"-",Y38) -> - | J79: =IF(I79="-","-",CONCATENATE(MID($C38,1,21)," - ",$G38)) -> - | P79: =IF(Z39=0,"-",Z39) -> - | Q79: =IF(P79="-","-",CONCATENATE(MID($C39,1,21)," - ",$G39)) -> - | V79: 0 | W79: 0 | X79: =IF(I79="-",0,1) -> 0 | Y79: 0
B80: =IF(X49=0,"-",X49) -> - | C80: =IF(B80="-","-",CONCATENATE(MID($C49,1,21)," - ",$G49)) -> - | I80: =IF(Y49=0,"-",Y49) -> - | J80: =IF(I80="-","-",CONCATENATE(MID($C49,1,21)," - ",$G49)) -> - | V80: =IF(Y80+X80+W80>0,1,0) -> 1 | W80: =IF(B80="-",0,1) -> 0 | X80: =IF(I80="-",0,1) -> 0 | Y80: 1
B81: =IF(X48=0,"-",X48) -> - | C81: =IF(B81="-","-",CONCATENATE(MID($C48,1,21)," - ",$G48)) -> - | I81: =IF(Y48=0,"-",Y48) -> - | J81: =IF(I81="-","-",CONCATENATE(MID($C48,1,21)," - ",$G48)) -> - | P81: =IF(Z40=0,"-",Z40) -> - | Q81: =IF(P81="-","-",CONCATENATE(MID($C40,1,21)," - ",$G40)) -> - | V81: 0 | W81: 0 | X81: 0 | Y81: 0
V82: =IF($B$14>="",0,1) -> 0
V83: 1
V84: 1
D85: =MID(C83,13,5) ->  | F85: =MID(E83,13,5) ->  | V85: 1
D86: AREA RISERVATA AL FORNITORE | V86: 1
V87: 1
V88: 1
C89: VERIFICA STAGING | O89: VERIFICA INSTALLATORE | V89: 1
V90: 1
V91: 1
V92: 1
V93: 1

Sheet Codici (hidden)
A1: Codici | B1: LOTTO 4
A2: TS1L4-2P | B2: Server Blade Base 2p | C2: 2068 | D2: 1 | E2: Blade HPE ProLiant BL460c Gen9 (1 x CPU Intel® Xeon® E5-2640 v4, 32GB RDIMM, 2xHDD 300GB 10K RPM SAS 12Gbps 2.5in)
A3: TS1L4-CPU-2P | B3: Opz1P | C3: 978 | D3: 1 | E3: Processore Singolo Intel Xeon E5-2640 v4 2.4GHz, 25M Cache, 8 GT/s QPI, Turbo, HT, 10C/20T
A4: TS1L4-32GB | B4: OpzRam32 | C4: 348 | D4: 1 | E4: Kit di espansione di memoria RAM da 32GB
A5: TS1L4-64GB | B5: OpzRam64 | C5: 736 | D5: 1 | E5: Kit di espansione di memoria RAM da 64GB
A6: TS1L4-HD1200 | B6: OpzStorage Double 1 TB | C6: 398 | D6: 1 | E6: Aggiornamento dei 2 dischi "base" con 2 HDD 1.2TB SAS 10k
A7: TS1L4-WIN1 | B7: OpzWinServ1 | C7: 543 | D7: 1 | E7: Kit Windows Server 2016, Standard Edition, 2CPU/16 core ROK, COA + Media
A8: TS1L4-WIN2 | B8: OpzWinServ2 | C8: 543 | D8: 1 | E8: Kit Windows Server 2016, Standard Edition, 2CPU/16 core ROK, COA + Media
A9: TS1L4-WIN2CORE | B9: OpzWinServ2core | C9: 54 | D9: 1 | E9: Windows Server 2016, Standard Edition Licenza Aggiuntiva 2 Core
A10: TS1L4-WINDC1 | B10: OpzWinServDC1 | C10: 2174 | D10: 1 | E10: Kit Windows Server 2016, Datacenter, 2CPU/16 core ROK, COA + Media
A11: TS1L4-WINDC2 | B11: OpzWinServDC2 | C11: 2174 | D11: 1 | E11: Kit Windows Server 2016, Datacenter, Licenza aggiuntiva 2CPU/16 core ROK, COA + Media
A12: TS1L4-CALUSER | B12: OpzUserCal | C12: 22 | D12: 1 | E12: 1-pack of Windows Server 2016 R2 User CALs
A13: TS1L4-CALDEV | B13: OpzDeviceCal | C13: 22 | D13: 1 | E13: 1-pack of Windows Server 2016 R2 Device CALs
A14: TS1L4-LINUX | B14: OpzOpenSource | C14: 47 | D14: 1 | E14: DVD Linux Centos 7.x
A15: TS1L4-16GB | B15: OpzRam16 | C15: 174 | D15: 1 | E15: Kit di espansione di memoria RAM da 16GB
A16: TS1L4-32GB | B16: OpzRam32 | C16: 348 | D16: 1 | E16: Kit di espansione di memoria RAM da 32GB
A17: TS1L4-64GB | B17: OpzRam64 | C17: 736 | D17: 1 | E17: Kit di espansione di memoria RAM da 64GB
A18: S4-871168-A21 | B18: OpzWinServDC2core | C18: 530 | D18: 1 | E18: Microsoft Windows Server 2016 Datacenter Edition Additional License 2 Core
A19: S4-437575-B21 | B19: OpzKVMChassis | C19: 195 | D19: 1 | E19: HP BLc3000 KVM Option
A20: S4-488100-B21 | B20: OpzOAChassis | C20: 442 | D20: 1 | E20: HP BLc3000 Dual DDR2 Onboard Admin Kit
A21: S4-665246-B21 | B21: Opz10Gb | C21: 596 | D21: 1 | E21: HPE Ethernet 10Gb 2-port 560M Adapter
A22: S4-700748-B21 | B22: OpzFF10Gb | C22: 532 | D22: 1 | E22: HPE FlexFabric 10Gb 2-port 534M Adapter
A23: S4-638526-B21 | B23: OpzVirtualConnect | C23: 9800 | D23: 1 | E23: HPE Virtual Connect Flex-10/10D Module for c-Class BladeSystem
A24: S4-658250-B21 | B24: OpzBladeSwitch | C24: 4016 | D24: 1 | E24: HPE 6125G/XG Ethernet Blade Switch
A25: S4-854194-B21 | B25: OpzPassThru10Gb | C25: 4357 | D25: 1 | E25: HPE 10GbE Ethernet Pass-Thru Module II for c-Class BladeSystem
A26: S4-641146 | B26: OpzB22HP | C26: 5900 | D26: 1 | E26: HP Cisco B22HP Fabric Extender for BladeSystem c-Class
A27: S4-453154-B21 | B27: OpzTransceiver 1Gbase-T | C27: 180 | D27: 1 | E27: HPE BladeSystem c-Class Virtual Connect 1G SFP RJ-45 Transceiver
A28: S4-455883-B21 | B28: OpzTransceiver 10G SFP+ | C28: 230 | D28: 1 | E28: HPE BLc 10G SFP+ SR Transceiver
A29: S4-813874-B21 | B29: OpzTransceiver 10Gbase-T | C29: 600 | D29: 1 | E29: HPE 10GBase-T SFP+ Transceiver
A30: S4-T5517AAE | B30: OpzUpgradeSwitch | C30: 3328 | D30: 1 | E30: Brocade 8/16Gb Embedded FC Switch 12-port Upgrade E-LTU
A31: TS1L4-CPU-4P | B31: Opz2P | C31: 3804 | D31: 1 | E31: Coppia di Processori Intel Xeon E5-4640 v4 2.1GHz, 30M Cache, 8 GT/s QPI, Turbo, HT, 12C/24T
A32: TS1L4-HD1200 | B32: OpzStorage Double 1 TB | C32: 398 | D32: 1 | E32: Aggiornamento dei 2 dischi "base" con 2 HDD 1.2TB SAS 10k
A33: TS1L4-4P | B33: Server Blade Base 4p | C33: 4556 | D33: 1 | E33: Blade HPE ProLiant BL660c Gen9 (2 x CPU Intel® Xeon® E5-4640 v4, 64GB RDIMM, 2xHDD 300GB 10K RPM SAS 12Gbps 2.5in)
A34: TS1L4-CHASSIS | B34: OpzChassis | C34: 3185 | D34: 1 | E34: Chassis server Blade, 2 x Switch Brocade 8/12 SAN, 1 x 10GbE Pass Thru, 6 x Power Supply Hot Plug
A35: TS1L4-4ANNI | B35: OpzEstensione12 | C35: 327 | D35: 1 | E35: Estensione della manutenzione in garanzia per ulteriori 12 mesi
A36: TS1L4-5ANNI | B36: OpzEstensione24 | C36: 610 | D36: 1 | E36: Estensione della manutenzione in garanzia per ulteriori 24 mesi
A38: TS1L4-4P | B38: Server Blade Base 4p | C38: 4556 | D38: 1 | E38: Blade HPE ProLiant BL660c Gen9 (2 x CPU Intel® Xeon® E5-4640 v4, 64GB RDIMM, 2xHDD 300GB 10K RPM SAS 12Gbps 2.5in)
A39: TS1L4-CPU-4P | B39: Opz2P | C39: 3804 | D39: 1 | E39: Coppia di Processori Intel Xeon E5-4640 v4 2.1GHz, 30M Cache, 8 GT/s QPI, Turbo, HT, 12C/24T
A40: TS1L4-32GB | B40: OpzRam32 | C40: 348 | D40: 1 | E40: Kit di espansione di memoria RAM da 32GB
A41: TS1L4-64GB | B41: OpzRam64 | C41: 736 | D41: 1 | E41: Kit di espansione di memoria RAM da 64GB
A42: TS1L4-HD1200 | B42: OpzStorage Double 1 TB | C42: 398 | D42: 1 | E42: Aggiornamento dei 2 dischi "base" con 2 HDD 1.2TB SAS 10k

Sheet Processor (hidden)
A1: Additional Processor
A2: Server BL460c Gen9 | C2: CPU-A
A3: Nessun Processore Aggiuntivo | B3: 0 | C3: ="" ->  | E3: ="" ->  | F3: ="" ->  | G3: ="" ->  | H3: ="" -> 
A4: HPE BL460c Gen9 E5-2640v4 Kit | B4: 1 | C4: TS1L4-CPU-2P | D4: 819839-B21 | E4: 819839-B21 | L4: 978
A6: Server BL660c Gen9 | C6: CPU-B
A7: Nessun Processore Aggiuntivo | B7: 0 | C7: ="" ->  | F7: ="" ->  | G7: ="" ->  | H7: ="" ->  | L7: ="" -> 
A8: HPE BL660c Gen9 E5-4640v4 2P Kit | B8: 2 | C8: TS1L4-CPU-4P | D8: 844373-B21 | E8: 844373-B21 | L8: 3804
A10: Server T630 | C10: CPU-C
A11: Nessun Processore Aggiuntivo | B11: 0 | C11: ="" ->  | E11: [374-BBBX] | F11: ="" ->  | G11: ="" ->  | H11: ="" ->  | L11: ="" -> 
A12: Intel Xeon E5-2650 v3 2.3GHz,25M Cache,9.60GT/s QPI,Turbo,HT,10C/20T (105W) Max Mem 2133MHz,Customer Kit | B12: 1 | C12: 10L1-CPU-T | D12: S10L1-T630-CPU | E12: [338-BFCF] | F12: Kit - 105W Heatsink for T630 | G12: 1 | H12: [412-AADU] | L12: 800
A14: OA Kit
A15: None | B15: 0 | C15: ="" ->  | F15: ="" ->  | G15: ="" ->  | H15: ="" ->  | L15: ="" -> 
A16: HP BLc3000 Dual DDR2 Onboard Admin Kit | B16: 1 | C16: S4-488100-B21 | D16: TS1L4-488100-B21 | E16: 488100-B21 | L16: 442
A18: KVM Kit
A19: None | B19: 0 | C19: ="" ->  | F19: ="" ->  | G19: ="" ->  | H19: ="" ->  | L19: ="" -> 
A20: HP BLc3000 KVM Option | B20: 1 | C20: S4-437575-B21 | D20: S4-437575-B21 | E20: 437575-B21 | L20: 195
A23: Interconnect Bay 1
A24: HPE 10GbE Ethernet Pass-Thru Module II for c-Class BladeSystem | B24: 1 | C24: ="" ->  | D24: ="" ->  | E24: ="" ->  | F24: ="" ->  | G24: ="" ->  | H24: ="" ->  | I24: ="" ->  | J24: ="" ->  | K24: 0 | L24: 0
A25: HPE Virtual Connect Flex-10/10D Module for c-Class BladeSystem | B25: 1 | C25: S4-638526-B21 | D25: S4-638526-B21 | E25: 638526-B21 | L25: 9800
A26: HP Cisco B22HP Fabric Extender for BladeSystem c-Class | B26: 1 | C26: S4-641146 | D26: S4-641146 | E26: 641146-B21 | L26: 5900
A28: Inteconnect Bay 2
A29: None | B29: 0 | C29: ="" ->  | F29: ="" ->  | G29: ="" ->  | H29: ="" ->  | L29: ="" -> 
A30: HPE 10GbE Ethernet Pass-Thru Module II for c-Class BladeSystem | B30: 1 | C30: S4-854194-B21 | D30: S4-854194-B21 | E30: 854194-B21 | L30: 4375
A31: HPE Virtual Connect Flex-10/10D Module for c-Class BladeSystem | B31: 1 | C31: S4-638526-B21 | D31: S4-638526-B21 | E31: 638526-B21 | L31: 9800
A32: HP Cisco B22HP Fabric Extender for BladeSystem c-Class | B32: 1 | C32: S4-641146 | D32: S4-641146 | E32: 641146-B21 | L32: 5900
A36: Transceiver
A37: None | B37: 0 | C37: ="" ->  | F37: ="" ->  | G37: ="" ->  | H37: ="" ->  | L37: ="" -> 
A38: HPE BladeSystem c-Class Virtual Connect 1G SFP RJ-45 Transceiver | B38: 1 | C38: S4-453154-B21 | D38: S4-453154-B21 | E38: 453154-B21 | L38: 180
A39: HPE BLc 10G SFP+ SR Transceiver | B39: 1 | C39: S4-455883-B21 | D39: S4-455883-B21 | E39: 455883-B21 | L39: 230
A40: HPE 10GBase-T SFP+ Transceiver | B40: 1 | C40: S4-813874-B21 | D40: S4-813874-B21 | E40: 813874-B21 | L40: 600
A43: No
A44: Yes

Sheet Memory (hidden)
B1: Total Memory
B3: HPE 16GB 2Rx4 PC4-2400T-R Kit | C3: 1 | D3: TS1L4-16GB | E3: TS1L4-16GB | F3: 836220-B21 | G3: 174
B4: HPE 32GB 2Rx4 PC4-2400T-R Kit | C4: 1 | D4: TS1L4-32GB | E4: TS1L4-32GB | F4: 805351-B21 | G4: 348
B5: HPE 64GB 4Rx4 PC4-2400T-L Kit | C5: 1 | D5: TS1L4-64GB | E5: TS1L4-64GB | F5: 805358-B21 | G5: 736
A8: 1CPU | B8: MEMORY A
A9: 32 | B9: ="" ->  | C9: ="" ->  | D9: ="" ->  | E9: ="" ->  | F9: ="" ->  | G9: ="" ->  | H9: HPE 32GB 2Rx4 PC4-2400T-R Kit | I9: 1 | J9: 805351-B21 | K9: ="" ->  | L9: ="" ->  | M9: ="" ->  | N9: ="" ->  | O9: ="" ->  | P9: ="" -> 
A10: 64 | B10: HPE 32GB 2Rx4 PC4-2400T-R Kit | C10: 1 | D10: TS1L4-32GB | E10: TS1L4-32GB | F10: 805351-B21 | G10: =$G$4*C10 -> 348 | H10: HPE 32GB 2Rx4 PC4-2400T-R Kit | I10: 1 | J10: 805351-B21 | K10: ="" ->  | L10: ="" ->  | M10: ="" ->  | N10: ="" ->  | O10: ="" ->  | P10: ="" -> 
A11: 128 | B11: HPE 32GB 2Rx4 PC4-2400T-R Kit | C11: 3 | D11: TS1L4-32GB | E11: TS1L4-32GB | F11: 805351-B21 | G11: =$G$4*C11 -> 1044 | H11: HPE 32GB 2Rx4 PC4-2400T-R Kit | I11: 1 | J11: 805351-B21 | K11: ="" ->  | L11: ="" ->  | M11: ="" ->  | N11: ="" ->  | O11: ="" ->  | P11: ="" -> 
A12: 128 (64 GB) | B12: ="" ->  | C12: ="" ->  | D12: ="" ->  | E12: ="" ->  | F12: ="" ->  | G12: ="" ->  | H12: ="" ->  | I12: ="" ->  | J12: ="" ->  | K12: HPE 64GB 4Rx4 PC4-2400T-L Kit | L12: 2 | M12: TS1L4-64GB | N12: TS1L4-64GB | O12: 805358-B21 | P12: =$G$5*L12 -> 1472
A13: 192 | B13: HPE 32GB 2Rx4 PC4-2400T-R Kit | C13: 5 | D13: TS1L4-32GB | E13: TS1L4-32GB | F13: 805351-B21 | G13: =$G$4*C13 -> 1740 | H13: HPE 32GB 2Rx4 PC4-2400T-R Kit | I13: 1 | J13: 805351-B21 | K13: ="" ->  | L13: ="" ->  | M13: ="" ->  | N13: ="" ->  | O13: ="" ->  | P13: ="" -> 
A14: 256 | B14: HPE 32GB 2Rx4 PC4-2400T-R Kit | C14: 7 | D14: TS1L4-32GB | E14: TS1L4-32GB | F14: 805351-B21 | G14: =$G$4*C14 -> 2436 | H14: HPE 32GB 2Rx4 PC4-2400T-R Kit | I14: 1 | J14: 805351-B21 | K14: ="" ->  | L14: ="" ->  | M14: ="" ->  | N14: ="" ->  | O14: ="" ->  | P14: ="" -> 
A15: 256 (64 GB) | B15: ="" ->  | C15: ="" ->  | D15: ="" ->  | E15: ="" ->  | F15: ="" ->  | G15: ="" ->  | H15: ="" ->  | I15: ="" ->  | J15: ="" ->  | K15: HPE 64GB 4Rx4 PC4-2400T-L Kit | L15: 4 | M15: TS1L4-64GB | N15: TS1L4-64GB | O15: 805358-B21 | P15: =$G$5*L15 -> 2944
A16: 512 | B16: ="" ->  | C16: ="" ->  | D16: ="" ->  | E16: ="" ->  | F16: ="" ->  | G16: ="" ->  | H16: ="" ->  | I16: ="" ->  | J16: ="" ->  | K16: HPE 64GB 4Rx4 PC4-2400T-L Kit | L16: 8 | M16: TS1L4-64GB | N16: TS1L4-64GB | O16: 805358-B21 | P16: =$G$5*L16 -> 5888
A17: 2CPU
A18: 64 | B18: HPE 32GB 2Rx4 PC4-2400T-R Kit | C18: 1 | D18: TS1L4-32GB | E18: TS1L4-32GB | F18: 805351-B21 | G18: =$G$4*C18 -> 348 | H18: HPE 32GB 2Rx4 PC4-2400T-R Kit | I18: 1 | J18: 805351-B21 | K18: ="" ->  | L18: ="" ->  | M18: ="" ->  | N18: ="" ->  | O18: ="" ->  | P18: ="" -> 
A19: 128 | B19: HPE 32GB 2Rx4 PC4-2400T-R Kit | C19: 3 | D19: TS1L4-32GB | E19: TS1L4-32GB | F19: 805351-B21 | G19: =$G$4*C19 -> 1044 | H19: HPE 32GB 2Rx4 PC4-2400T-R Kit | I19: 1 | J19: 805351-B21
A20: 128 (64 GB) | B20: ="" ->  | C20: ="" ->  | D20: ="" ->  | E20: ="" ->  | F20: ="" ->  | G20: ="" ->  | H20: ="" ->  | I20: ="" ->  | K20: HPE 64GB 4Rx4 PC4-2400T-L Kit | L20: 2 | M20: TS1L4-64GB | N20: TS1L4-64GB | O20: 805358-B21 | P20: =$G$5*L20 -> 1472
A21: 192 | B21: HPE 32GB 2Rx4 PC4-2400T-R Kit | C21: 5 | D21: TS1L4-32GB | E21: TS1L4-32GB | F21: 805351-B21 | G21: 1740 | H21: HPE 32GB 2Rx4 PC4-2400T-R Kit | I21: 1 | J21: 805351-B21
A22: 256 | B22: HPE 32GB 2Rx4 PC4-2400T-R Kit | C22: 7 | D22: TS1L4-32GB | E22: TS1L4-32GB | F22: 805351-B21 | G22: 2436 | H22: HPE 32GB 2Rx4 PC4-2400T-R Kit | I22: 1 | J22: 805351-B21
A23: 256 (64 GB) | B23: ="" ->  | C23: ="" ->  | D23: ="" ->  | E23: ="" ->  | F23: ="" ->  | G23: ="" ->  | H23: ="" ->  | I23: ="" ->  | K23: HPE 64GB 4Rx4 PC4-2400T-L Kit | L23: 4 | M23: TS1L4-64GB | N23: TS1L4-64GB | O23: 805358-B21 | P23: =$G$5*L23 -> 2944
A24: 320 | B24: HPE 32GB 2Rx4 PC4-2400T-R Kit | C24: 9 | D24: TS1L4-32GB | E24: TS1L4-32GB | F24: 805351-B21 | G24: 3132 | H24: HPE 32GB 2Rx4 PC4-2400T-R Kit | I24: 1 | J24: 805351-B21
A25: 384 | B25: HPE 32GB 2Rx4 PC4-2400T-R Kit | C25: 11 | D25: TS1L4-32GB | E25: TS1L4-32GB | F25: 805351-B21 | G25: 3828 | H25: HPE 32GB 2Rx4 PC4-2400T-R Kit | I25: 1 | J25: 805351-B21
A26: 384 (64 GB) | B26: ="" ->  | C26: ="" ->  | D26: ="" ->  | E26: ="" ->  | F26: ="" ->  | G26: ="" ->  | H26: ="" ->  | I26: ="" ->  | K26: HPE 64GB 4Rx4 PC4-2400T-L Kit | L26: 6 | M26: TS1L4-64GB | N26: TS1L4-64GB | O26: 805358-B21 | P26: =$G$5*L26 -> 4416
A27: 512 | B27: HPE 32GB 2Rx4 PC4-2400T-R Kit | C27: 15 | D27: TS1L4-32GB | E27: TS1L4-32GB | F27: 805351-B21 | G27: 5220 | H27: HPE 32GB 2Rx4 PC4-2400T-R Kit | I27: 1 | J27: 805351-B21
A28: 512 (64 GB) | B28: ="" ->  | C28: ="" ->  | D28: ="" ->  | E28: ="" ->  | F28: ="" ->  | G28: ="" ->  | H28: ="" ->  | I28: ="" ->  | K28: HPE 64GB 4Rx4 PC4-2400T-L Kit | L28: 8 | M28: TS1L4-64GB | N28: TS1L4-64GB | O28: 805358-B21 | P28: =$G$5*L28 -> 5888
A29: 640 (64 GB) | B29: ="" ->  | C29: ="" ->  | D29: ="" ->  | E29: ="" ->  | F29: ="" ->  | G29: ="" ->  | H29: ="" ->  | I29: ="" ->  | J29: ="" ->  | K29: HPE 64GB 4Rx4 PC4-2400T-L Kit | L29: 10 | M29: TS1L4-64GB | N29: TS1L4-64GB | O29: 805358-B21 | P29: =$G$5*L29 -> 7360
A30: 768 (64 GB) | B30: ="" ->  | C30: ="" ->  | D30: ="" ->  | E30: ="" ->  | F30: ="" ->  | G30: ="" ->  | H30: ="" ->  | I30: ="" ->  | J30: ="" ->  | K30: HPE 64GB 4Rx4 PC4-2400T-L Kit | L30: 12 | M30: TS1L4-64GB | N30: TS1L4-64GB | O30: 805358-B21 | P30: =$G$5*L30 -> 8832
A31: 1024 (64 GB) | B31: ="" ->  | C31: ="" ->  | D31: ="" ->  | E31: ="" ->  | F31: ="" ->  | G31: ="" ->  | H31: ="" ->  | I31: ="" ->  | J31: ="" ->  | K31: HPE 64GB 4Rx4 PC4-2400T-L Kit | L31: 16 | M31: TS1L4-64GB | N31: TS1L4-64GB | O31: 805358-B21 | P31: =$G$5*L31 -> 11776
B33: MEMORY B
A34: 4CPU | B34: UPGRADE 16GB | H34: MEMORIA BASE | K34: UPGRADE 32GB | T34: Memoria Totale | U34: Prezzo Totale Memorie | V34: Memory Cartridge Totali | W34: DIMM Slot | X34: 32 | Y34: 16 | Z34: 16
A35: 64 | B35: ="" ->  | C35: ="" ->  | D35: ="" ->  | E35: ="" ->  | F35: ="" ->  | G35: ="" ->  | H35: HPE 32GB 2Rx4 PC4-2400T-R Kit | I35: 2 | J35: 805351-B21 | K35: ="" ->  | L35: ="" ->  | M35: ="" ->  | N35: ="" ->  | O35: ="" ->  | P35: ="" ->  | T35: =A35 -> 64 | V35: =S35 -> 0 | W35: =AA35 -> 2 | X35: =IF(L35="",0,L35) -> 0 | Y35: =IF(I35="",0,I35) -> 2 | Z35: =IF(C35="",0,C35) -> 0 | AA35: =SUM(X35:Z35) -> 2
A36: 128 | B36: HPE 32GB 2Rx4 PC4-2400T-R Kit | C36: 2 | D36: TS1L4-32GB | E36: TS1L4-32GB | F36: 805351-B21 | G36: =$G$4*C36 -> 696 | H36: HPE 32GB 2Rx4 PC4-2400T-R Kit | I36: 2 | J36: 805351-B21 | K36: ="" ->  | L36: ="" ->  | M36: ="" ->  | N36: ="" ->  | O36: ="" ->  | P36: ="" ->  | T36: 128 | V36: =S36 -> 0 | W36: 4 | X36: 0 | Y36: 2 | Z36: 2 | AA36: 4
A37: 128 (64 GB) | B37: ="" ->  | C37: ="" ->  | D37: ="" ->  | E37: ="" ->  | F37: ="" ->  | G37: ="" ->  | H37: ="" ->  | I37: ="" ->  | K37: HPE 64GB 4Rx4 PC4-2400T-L Kit | L37: 2 | M37: TS1L4-64GB | N37: TS1L4-64GB | O37: 805358-B21 | P37: =$G$5*L37 -> 1472
A38: 192 | B38: HPE 32GB 2Rx4 PC4-2400T-R Kit | C38: 4 | D38: TS1L4-32GB | E38: TS1L4-32GB | F38: 805351-B21 | G38: 1392 | H38: HPE 32GB 2Rx4 PC4-2400T-R Kit | I38: 2 | J38: 805351-B21 | K38: ="" ->  | L38: ="" ->  | M38: ="" ->  | N38: ="" ->  | O38: ="" ->  | P38: ="" ->  | T38: 192 | V38: 0 | W38: 6 | X38: 0 | Y38: 2 | Z38: 4 | AA38: 6
A39: 256 | B39: HPE 32GB 2Rx4 PC4-2400T-R Kit | C39: 6 | D39: TS1L4-32GB | E39: TS1L4-32GB | F39: 805351-B21 | G39: 2088 | H39: HPE 32GB 2Rx4 PC4-2400T-R Kit | I39: 2 | J39: 805351-B21 | K39: ="" ->  | L39: ="" ->  | M39: ="" ->  | N39: ="" ->  | O39: ="" ->  | P39: ="" ->  | T39: 256 | V39: 0 | W39: 8 | X39: 0 | Y39: 2 | Z39: 6 | AA39: 8
A40: 256 (64 GB) | B40: ="" ->  | C40: ="" ->  | D40: ="" ->  | E40: ="" ->  | F40: ="" ->  | G40: ="" ->  | H40: ="" ->  | I40: ="" ->  | K40: HPE 64GB 4Rx4 PC4-2400T-L Kit | L40: 4 | M40: TS1L4-64GB | N40: TS1L4-64GB | O40: 805358-B21 | P40: =$G$5*L40 -> 2944
A41: 320 | B41: HPE 32GB 2Rx4 PC4-2400T-R Kit | C41: 8 | D41: TS1L4-32GB | E41: TS1L4-32GB | F41: 805351-B21 | G41: 2784 | H41: HPE 32GB 2Rx4 PC4-2400T-R Kit | I41: 2 | J41: 805351-B21 | K41: ="" ->  | L41: ="" ->  | M41: ="" ->  | N41: ="" ->  | O41: ="" ->  | P41: ="" ->  | T41: 320 | V41: 0 | W41: 10 | X41: 0 | Y41: 2 | Z41: 8 | AA41: 10
A42: 384 | B42: HPE 32GB 2Rx4 PC4-2400T-R Kit | C42: 10 | D42: TS1L4-32GB | E42: TS1L4-32GB | F42: 805351-B21 | G42: 3480 | H42: HPE 32GB 2Rx4 PC4-2400T-R Kit | I42: 2 | J42: 805351-B21 | K42: ="" ->  | L42: ="" ->  | M42: ="" ->  | N42: ="" ->  | O42: ="" ->  | P42: ="" ->  | T42: 384 | V42: 0 | W42: 12 | X42: 0 | Y42: 2 | Z42: 10 | AA42: 12
A43: 384 (64 GB) | B43: ="" ->  | C43: ="" ->  | D43: ="" ->  | E43: ="" ->  | F43: ="" ->  | G43: ="" ->  | H43: ="" ->  | I43: ="" ->  | K43: HPE 64GB 4Rx4 PC4-2400T-L Kit | L43: 6 | M43: TS1L4-64GB | N43: TS1L4-64GB | O43: 805358-B21 | P43: =$G$5*L43 -> 4416
A44: 512 | B44: HPE 32GB 2Rx4 PC4-2400T-R Kit | C44: 14 | D44: TS1L4-32GB | E44: TS1L4-32GB | F44: 805351-B21 | G44: 4872 | H44: HPE 32GB 2Rx4 PC4-2400T-R Kit | I44: 2 | J44: 805351-B21 | K44: ="" ->  | L44: ="" ->  | M44: ="" ->  | N44: ="" ->  | O44: ="" ->  | P44: ="" ->  | T44: 512 | V44: 0 | W44: 16 | X44: 0 | Y44: 2 | Z44: 14 | AA44: 16
A45: 512 (64 GB) | B45: ="" ->  | C45: ="" ->  | D45: ="" ->  | E45: ="" ->  | F45: ="" ->  | G45: ="" ->  | H45: ="" ->  | I45: ="" ->  | K45: HPE 64GB 4Rx4 PC4-2400T-L Kit | L45: 8 | M45: TS1L4-64GB | N45: TS1L4-64GB | O45: 805358-B21 | P45: =$G$5*L45 -> 5888
A46: 640 (64 GB) | B46: ="" ->  | C46: ="" ->  | D46: ="" ->  | E46: ="" ->  | F46: ="" ->  | G46: ="" ->  | H46: ="" ->  | I46: ="" ->  | J46: ="" ->  | K46: HPE 64GB 4Rx4 PC4-2400T-L Kit | L46: 10 | M46: TS1L4-64GB | N46: TS1L4-64GB | O46: 805358-B21 | P46: =$G$5*L46 -> 7360 | T46: 640 (64 GB) | V46: 0 | X46: =IF(#REF!="",0,#REF!) ->  | Y46: 0 | Z46: =IF(L46="",0,L46) -> 10
A47: 768 (64 GB) | B47: ="" ->  | C47: ="" ->  | D47: ="" ->  | E47: ="" ->  | F47: ="" ->  | G47: ="" ->  | H47: ="" ->  | I47: ="" ->  | J47: ="" ->  | K47: HPE 64GB 4Rx4 PC4-2400T-L Kit | L47: 12 | M47: TS1L4-64GB | N47: TS1L4-64GB | O47: 805358-B21 | P47: =$G$5*L47 -> 8832 | T47: 768 (64 GB) | V47: 0 | X47: =IF(#REF!="",0,#REF!) ->  | Y47: 0 | Z47: =IF(L47="",0,L47) -> 12
A48: 1024 (64 GB) | B48: ="" ->  | C48: ="" ->  | D48: ="" ->  | E48: ="" ->  | F48: ="" ->  | G48: ="" ->  | H48: ="" ->  | I48: ="" ->  | J48: ="" ->  | K48: HPE 64GB 4Rx4 PC4-2400T-L Kit | L48: 16 | M48: TS1L4-64GB | N48: TS1L4-64GB | O48: 805358-B21 | P48: =$G$5*L48 -> 11776 | T48: 1024 (64 GB) | V48: 0 | X48: =IF(#REF!="",0,#REF!) ->  | Y48: 0 | Z48: =IF(L48="",0,L48) -> 16
A50: 4CPU
A51: 64 | B51: ="" ->  | C51: ="" ->  | D51: ="" ->  | E51: ="" ->  | F51: ="" ->  | G51: ="" ->  | H51: HPE 32GB 2Rx4 PC4-2400T-R Kit | I51: 2 | J51: 805351-B21 | K51: ="" ->  | L51: ="" ->  | M51: ="" ->  | N51: ="" ->  | O51: ="" ->  | P51: ="" ->  | T51: =A51 -> 64 | V51: 0 | W51: =AA51 -> 2 | X51: =IF(L51="",0,L51) -> 0 | Y51: =IF(I51="",0,I51) -> 2 | Z51: =IF(C51="",0,C51) -> 0 | AA51: =SUM(X51:Z51) -> 2
A52: 128 | B52: HPE 32GB 2Rx4 PC4-2400T-R Kit | C52: 2 | D52: TS1L4-32GB | E52: TS1L4-32GB | F52: 805351-B21 | G52: =$G$4*C52 -> 696 | H52: HPE 32GB 2Rx4 PC4-2400T-R Kit | I52: 2 | J52: 805351-B21 | K52: ="" ->  | L52: ="" ->  | M52: ="" ->  | N52: ="" ->  | O52: ="" ->  | P52: ="" ->  | T52: 128 | V52: 0 | W52: 4 | X52: 0 | Y52: 2 | Z52: 2 | AA52: 4
A53: 128 (64 GB) | B53: ="" ->  | C53: ="" ->  | D53: ="" ->  | E53: ="" ->  | F53: ="" ->  | G53: ="" ->  | H53: ="" ->  | I53: ="" ->  | K53: HPE 64GB 4Rx4 PC4-2400T-L Kit | L53: 2 | M53: TS1L4-64GB | N53: TS1L4-64GB | O53: 805358-B21 | P53: =$G$5*L53 -> 1472
A54: 192 | B54: HPE 32GB 2Rx4 PC4-2400T-R Kit | C54: 4 | D54: TS1L4-32GB | E54: TS1L4-32GB | F54: 805351-B21 | G54: 1392 | H54: HPE 32GB 2Rx4 PC4-2400T-R Kit | I54: 2 | J54: 805351-B21 | K54: ="" ->  | L54: ="" ->  | M54: ="" ->  | N54: ="" ->  | O54: ="" ->  | P54: ="" ->  | T54: 192 | V54: 0 | W54: 6 | X54: 0 | Y54: 2 | Z54: 4 | AA54: 6
A55: 256 | B55: HPE 32GB 2Rx4 PC4-2400T-R Kit | C55: 6 | D55: TS1L4-32GB | E55: TS1L4-32GB | F55: 805351-B21 | G55: 2088 | H55: HPE 32GB 2Rx4 PC4-2400T-R Kit | I55: 2 | J55: 805351-B21 | K55: ="" ->  | L55: ="" ->  | M55: ="" ->  | N55: ="" ->  | O55: ="" ->  | P55: ="" ->  | T55: 256 | V55: 0 | W55: 8 | X55: 0 | Y55: 2 | Z55: 6 | AA55: 8
A56: 256 (64 GB) | B56: ="" ->  | C56: ="" ->  | D56: ="" ->  | E56: ="" ->  | F56: ="" ->  | G56: ="" ->  | H56: ="" ->  | I56: ="" ->  | K56: HPE 64GB 4Rx4 PC4-2400T-L Kit | L56: 4 | M56: TS1L4-64GB | N56: TS1L4-64GB | O56: 805358-B21 | P56: =$G$5*L56 -> 2944
A57: 320 | B57: HPE 32GB 2Rx4 PC4-2400T-R Kit | C57: 8 | D57: TS1L4-32GB | E57: TS1L4-32GB | F57: 805351-B21 | G57: 2784 | H57: HPE 32GB 2Rx4 PC4-2400T-R Kit | I57: 2 | J57: 805351-B21 | K57: ="" ->  | L57: ="" ->  | M57: ="" ->  | N57: ="" ->  | O57: ="" ->  | P57: ="" ->  | T57: 320 | V57: 0 | W57: 10 | X57: 0 | Y57: 2 | Z57: 8 | AA57: 10
A58: 384 | B58: HPE 32GB 2Rx4 PC4-2400T-R Kit | C58: 10 | D58: TS1L4-32GB | E58: TS1L4-32GB | F58: 805351-B21 | G58: 3480 | H58: HPE 32GB 2Rx4 PC4-2400T-R Kit | I58: 2 | J58: 805351-B21 | K58: ="" ->  | L58: ="" ->  | M58: ="" ->  | N58: ="" ->  | O58: ="" ->  | P58: ="" ->  | T58: 384 | V58: 0 | W58: 12 | X58: 0 | Y58: 2 | Z58: 10 | AA58: 12
A59: 384 (64 GB) | B59: ="" ->  | C59: ="" ->  | D59: ="" ->  | E59: ="" ->  | F59: ="" ->  | G59: ="" ->  | H59: ="" ->  | I59: ="" ->  | K59: HPE 64GB 4Rx4 PC4-2400T-L Kit | L59: 6 | M59: TS1L4-64GB | N59: TS1L4-64GB | O59: 805358-B21 | P59: =$G$5*L59 -> 4416
A60: 512 | B60: HPE 32GB 2Rx4 PC4-2400T-R Kit | C60: 14 | D60: TS1L4-32GB | E60: TS1L4-32GB | F60: 805351-B21 | G60: 4872 | H60: HPE 32GB 2Rx4 PC4-2400T-R Kit | I60: 2 | J60: 805351-B21 | K60: ="" ->  | L60: ="" ->  | M60: ="" ->  | N60: ="" ->  | O60: ="" ->  | P60: ="" ->  | T60: 512 | V60: 0 | W60: 16 | X60: 0 | Y60: 2 | Z60: 14 | AA60: 16
A61: 512 (64 GB) | B61: ="" ->  | C61: ="" ->  | D61: ="" ->  | E61: ="" ->  | F61: ="" ->  | G61: ="" ->  | H61: ="" ->  | I61: ="" ->  | K61: HPE 64GB 4Rx4 PC4-2400T-L Kit | L61: 8 | M61: TS1L4-64GB | N61: TS1L4-64GB | O61: 805358-B21 | P61: =$G$5*L61 -> 5888
A62: 640 | B62: HPE 32GB 2Rx4 PC4-2400T-R Kit | C62: 18 | D62: TS1L4-32GB | E62: TS1L4-32GB | F62: 805351-B21 | G62: 6264 | H62: HPE 32GB 2Rx4 PC4-2400T-R Kit | I62: 2 | J62: 805351-B21 | K62: ="" ->  | L62: ="" ->  | M62: ="" ->  | N62: ="" ->  | O62: ="" ->  | P62: ="" ->  | T62: 640 | V62: 0 | W62: 20 | X62: 0 | Y62: 2 | Z62: 18 | AA62: 20
A63: 640 (64 GB) | B63: ="" ->  | C63: ="" ->  | D63: ="" ->  | E63: ="" ->  | F63: ="" ->  | G63: ="" ->  | H63: ="" ->  | I63: ="" ->  | K63: HPE 64GB 4Rx4 PC4-2400T-L Kit | L63: 10 | M63: TS1L4-64GB | N63: TS1L4-64GB | O63: 805358-B21 | P63: =$G$5*L63 -> 7360
A64: 768 | B64: HPE 32GB 2Rx4 PC4-2400T-R Kit | C64: 22 | D64: TS1L4-32GB | E64: TS1L4-32GB | F64: 805351-B21 | G64: 7656 | H64: HPE 32GB 2Rx4 PC4-2400T-R Kit | I64: 2 | J64: 805351-B21 | K64: ="" ->  | L64: ="" ->  | M64: ="" ->  | N64: ="" ->  | O64: ="" ->  | P64: ="" ->  | T64: 768 | V64: 0 | W64: 24 | X64: 0 | Y64: 2 | Z64: 22 | AA64: 24
A65: 768 (64 GB) | B65: ="" ->  | C65: ="" ->  | D65: ="" ->  | E65: ="" ->  | F65: ="" ->  | G65: ="" ->  | H65: ="" ->  | I65: ="" ->  | K65: HPE 64GB 4Rx4 PC4-2400T-L Kit | L65: 12 | M65: TS1L4-64GB | N65: TS1L4-64GB | O65: 805358-B21 | P65: =$G$5*L65 -> 8832
A66: 1024 | B66: HPE 32GB 2Rx4 PC4-2400T-R Kit | C66: 16 | D66: TS1L4-32GB | E66: TS1L4-32GB | F66: 805351-B21 | G66: 5568 | H66: HPE 32GB 2Rx4 PC4-2400T-R Kit | I66: 2 | J66: 805351-B21 | K66: ="" ->  | L66: ="" ->  | M66: ="" ->  | N66: ="" ->  | O66: ="" ->  | P66: ="" ->  | T66: 1024 | V66: 0 | W66: 18 | X66: 0 | Y66: 2 | Z66: 16 | AA66: 18
A67: 1024 (64 GB) | B67: ="" ->  | C67: ="" ->  | D67: ="" ->  | E67: ="" ->  | F67: ="" ->  | G67: ="" ->  | H67: ="" ->  | I67: ="" ->  | K67: HPE 64GB 4Rx4 PC4-2400T-L Kit | L67: 16 | M67: TS1L4-64GB | N67: TS1L4-64GB | O67: 805358-B21 | P67: =$G$5*L67 -> 11776
A68: 1536 (64 GB) | B68: ="" ->  | C68: ="" ->  | D68: ="" ->  | E68: ="" ->  | F68: ="" ->  | G68: ="" ->  | H68: ="" ->  | I68: ="" ->  | J68: ="" ->  | K68: HPE 64GB 4Rx4 PC4-2400T-L Kit | L68: 24 | M68: TS1L4-64GB | N68: TS1L4-64GB | O68: 805358-B21 | P68: 17664 | T68: 1536 (64 GB) | V68: 0 | W68: 24 | X68: 24 | Y68: 0 | Z68: 0 | AA68: 24
A69: 2048 (64 GB) | B69: ="" ->  | C69: ="" ->  | D69: ="" ->  | E69: ="" ->  | F69: ="" ->  | G69: ="" ->  | H69: ="" ->  | I69: ="" ->  | J69: ="" ->  | K69: HPE 64GB 4Rx4 PC4-2400T-L Kit | L69: 32 | M69: TS1L4-64GB | N69: TS1L4-64GB | O69: 805358-B21 | P69: 23552 | T69: =A69 -> 2048 (64 GB) | V69: 0 | W69: =AA69 -> 32 | X69: =IF(L69="",0,L69) -> 32 | Y69: =IF(I69="",0,I69) -> 0 | Z69: =IF(C69="",0,C69) -> 0 | AA69: =SUM(X69:Z69) -> 32
A72: 1CPU | B72: MEMORY C
A73: 32
A74: 64
A75: 128
A76: 160
A77: 192
A78: 256
A79: 2CPU
A80: 32
A81: 64
A82: 128
A83: 160
A84: 192
A85: 256
A86: 320
A87: 384
A88: 512
M96: 44GB8

Sheet Operating System (hidden)
A1: Operating System
A2: BL460c Gen9 1 CPU
A3: Nessun Sistema Operativo | B3: ="" ->  | C3: ="" ->  | D3: ="" ->  | E3: ="" ->  | F3: ="" ->  | G3: None | H3: ="" ->  | I3: ="" ->  | J3: ="" ->  | K3: ="" ->  | L3: 0 | M3: None | N3: ="" ->  | O3: ="" ->  | P3: ="" ->  | Q3: ="" ->  | R3: 0 | S3: ="" ->  | T3: ="" ->  | U3: ="" ->  | V3: ="" ->  | W3: ="" ->  | X3: ="" ->  | Y3: ="" ->  | Z3: ="" ->  | AA3: ="" ->  | AB3: ="" ->  | AC3: ="" ->  | AD3: ="" -> 
A4: Microsoft Windows Server 2016 Standard Edition ROK 16 Core | B4: 1 | C4: TS1L4-WIN1 | E4: 871148-B21 | F4: 543 | G4: 1-pack of Windows Server 2016 User CALs (Standard or Datacenter) | H4: 1 | I4: TS1L4-CALUSER | K4: 701608-A21 | L4: 22 | M4: 1-pack of Windows Server 20126 Device CALs (Standard or Datacenter) | N4: 1 | O4: TS1L4-CALDEV | Q4: 701609-A21 | R4: 22 | S4: ="" ->  | T4: ="" ->  | U4: ="" ->  | V4: ="" ->  | W4: ="" ->  | X4: ="" ->  | Y4: ="" ->  | Z4: ="" ->  | AA4: ="" ->  | AB4: ="" ->  | AC4: ="" ->  | AD4: ="" -> 
A5: Microsoft Windows Server 2016 Datacenter Edition ROK 16 Core | B5: 1 | C5: TS1L4-WINDC1 | E5: 871153-B21 | F5: 2174 | G5: 1-pack of Windows Server 2016 User CALs (Standard or Datacenter) | H5: 1 | I5: TS1L4-CALUSER | K5: 701608-A21 | L5: 22 | M5: 1-pack of Windows Server 2016 Device CALs (Standard or Datacenter) | N5: 1 | O5: TS1L4-CALDEV | Q5: 701609-A21 | R5: 22 | S5: ="" ->  | T5: ="" ->  | U5: ="" ->  | V5: ="" ->  | W5: ="" ->  | X5: ="" ->  | Y5: ="" ->  | Z5: ="" ->  | AA5: ="" ->  | AB5: ="" ->  | AC5: ="" ->  | AD5: ="" -> 
A6: CentOS 7.0 | B6: 1 | C6: TS1L4-LINUX | E6: ="" ->  | F6: 47 | G6: None | H6: ="" ->  | I6: ="" ->  | J6: ="" ->  | K6: ="" ->  | M6: None | N6: ="" ->  | O6: ="" ->  | P6: ="" ->  | Q6: ="" ->  | S6: ="" ->  | T6: ="" ->  | U6: ="" ->  | V6: ="" ->  | W6: ="" ->  | X6: ="" ->  | Y6: ="" ->  | Z6: ="" ->  | AA6: ="" ->  | AB6: ="" ->  | AC6: ="" ->  | AD6: ="" -> 
A9: BL460c Gen9 2 CPU
A10: Nessun Sistema Operativo | B10: ="" ->  | C10: ="" ->  | D10: ="" ->  | E10: ="" ->  | F10: ="" ->  | G10: None | H10: ="" ->  | I10: ="" ->  | J10: ="" ->  | K10: ="" ->  | L10: 0 | M10: None | N10: ="" ->  | O10: ="" ->  | P10: ="" ->  | Q10: ="" ->  | R10: 0 | S10: ="" ->  | T10: ="" ->  | U10: ="" ->  | V10: ="" ->  | W10: ="" ->  | X10: ="" ->  | Y10: ="" ->  | Z10: ="" ->  | AA10: ="" ->  | AB10: ="" ->  | AC10: ="" ->  | AD10: ="" -> 
A11: Microsoft Windows Server 2016 Standard Edition ROK 16 Core | B11: 1 | C11: TS1L4-WIN1 | E11: 871148-B21 | F11: 543 | G11: 1-pack of Windows Server 2016 User CALs (Standard or Datacenter) | H11: 1 | I11: TS1L4-CALUSER | K11: 701608-A21 | L11: 22 | M11: 1-pack of Windows Server 20126 Device CALs (Standard or Datacenter) | N11: 1 | O11: TS1L4-CALDEV | Q11: 701609-A21 | R11: 22 | S11: Microsoft Windows Server 2016 Standard Edition Additional License 2 Core | T11: 2 | U11: TS1L4-WIN2CORE | V11: TS1L4-WIN2CORE | W11: 871159-A21 | X11: 108 | Y11: ="" ->  | Z11: ="" ->  | AA11: ="" ->  | AB11: ="" ->  | AC11: ="" ->  | AD11: ="" -> 
A12: Microsoft Windows Server 2016 Datacenter Edition ROK 16 Core | B12: 1 | C12: TS1L4-WINDC1 | E12: 871153-B21 | F12: 2174 | G12: 1-pack of Windows Server 2016 User CALs (Standard or Datacenter) | H12: 1 | I12: TS1L4-CALUSER | K12: 701608-A21 | L12: 22 | M12: 1-pack of Windows Server 2016 Device CALs (Standard or Datacenter) | N12: 1 | O12: TS1L4-CALDEV | Q12: 701609-A21 | R12: 22 | S12: ="" ->  | T12: ="" ->  | U12: ="" ->  | V12: ="" ->  | W12: ="" ->  | X12: ="" ->  | Y12: Microsoft Windows Server 2016 Datacenter Edition Additional License 2 Core | Z12: 2 | AA12: S4-871168-A21 | AB12: S4-871168-A21 | AC12: 871168-A21 | AD12: 1060
A13: CentOS 7.0 | B13: 1 | C13: TS1L4-LINUX | E13: ="" ->  | F13: 47 | G13: None | H13: ="" ->  | I13: ="" ->  | K13: ="" ->  | M13: None | N13: ="" ->  | O13: ="" ->  | Q13: ="" ->  | S13: ="" ->  | T13: ="" ->  | U13: ="" ->  | V13: ="" ->  | W13: ="" ->  | X13: ="" ->  | Y13: ="" ->  | Z13: ="" ->  | AA13: ="" ->  | AB13: ="" ->  | AC13: ="" ->  | AD13: ="" -> 
A15: BL660c Gen9 2 CPU
A16: Nessun Sistema Operativo | B16: ="" ->  | C16: ="" ->  | D16: ="" ->  | E16: ="" ->  | F16: ="" ->  | G16: None | H16: ="" ->  | I16: ="" ->  | K16: ="" ->  | L16: 0 | M16: None | N16: ="" ->  | O16: ="" ->  | Q16: ="" ->  | R16: 0 | S16: ="" ->  | T16: ="" ->  | U16: ="" ->  | V16: ="" ->  | W16: ="" ->  | X16: ="" ->  | Y16: ="" ->  | Z16: ="" ->  | AA16: ="" ->  | AB16: ="" ->  | AC16: ="" ->  | AD16: ="" -> 
A17: Microsoft Windows Server 2016 Standard Edition ROK 16 Core | B17: 1 | C17: TS1L4-WIN1 | E17: 871148-B21 | F17: 543 | G17: 1-pack of Windows Server 2016 User CALs (Standard or Datacenter) | H17: 1 | I17: TS1L4-CALUSER | K17: 701608-A21 | L17: 22 | M17: 1-pack of Windows Server 20126 Device CALs (Standard or Datacenter) | N17: 1 | O17: TS1L4-CALDEV | Q17: 701609-A21 | R17: 22 | S17: Microsoft Windows Server 2016 Standard Edition Additional License 2 Core | T17: 4 | U17: TS1L4-WIN2CORE | V17: TS1L4-WIN2CORE | W17: 871159-A21 | X17: 216 | Y17: ="" ->  | Z17: ="" ->  | AA17: ="" ->  | AB17: ="" ->  | AC17: ="" ->  | AD17: ="" -> 
A18: Microsoft Windows Server 2016 Datacenter Edition ROK 16 Core | B18: 1 | C18: TS1L4-WINDC1 | E18: 871153-B21 | F18: 2174 | G18: 1-pack of Windows Server 2016 User CALs (Standard or Datacenter) | H18: 1 | I18: TS1L4-CALUSER | K18: 701608-A21 | L18: 22 | M18: 1-pack of Windows Server 2016 Device CALs (Standard or Datacenter) | N18: 1 | O18: TS1L4-CALDEV | Q18: 701609-A21 | R18: 22 | S18: Microsoft Windows Server 2016 Datacenter Edition Additional License 16 Core | T18: 1 | U18: TS1L4-WINDC2 | V18: TS1L4-WINDC2 | W18: 871166-A21 | X18: 2174 | Y18: ="" ->  | Z18: ="" ->  | AA18: ="" ->  | AB18: ="" ->  | AC18: ="" ->  | AD18: ="" -> 
A19: CentOS 7.0 | B19: 1 | C19: TS1L4-LINUX | E19: ="" ->  | F19: 47 | G19: None | H19: ="" ->  | I19: ="" ->  | K19: ="" ->  | M19: None | N19: ="" ->  | O19: ="" ->  | Q19: ="" ->  | S19: ="" ->  | T19: ="" ->  | U19: ="" ->  | V19: ="" ->  | W19: ="" ->  | X19: ="" ->  | Y19: ="" ->  | Z19: ="" ->  | AA19: ="" ->  | AB19: ="" ->  | AC19: ="" ->  | AD19: ="" -> 
A21: BL660c Gen9 4 CPU
A22: Nessun Sistema Operativo | B22: ="" ->  | C22: ="" ->  | D22: ="" ->  | E22: ="" ->  | F22: ="" ->  | G22: None | H22: ="" ->  | I22: ="" ->  | K22: ="" ->  | L22: 0 | M22: None | N22: ="" ->  | O22: ="" ->  | Q22: ="" ->  | R22: 0 | S22: ="" ->  | T22: ="" ->  | U22: ="" ->  | V22: ="" ->  | W22: ="" ->  | X22: ="" ->  | Y22: ="" ->  | Z22: ="" ->  | AA22: ="" ->  | AB22: ="" ->  | AC22: ="" ->  | AD22: ="" -> 
A23: Microsoft Windows Server 2016 Standard Edition ROK 16 Core | B23: 1 | C23: TS1L4-WIN1 | E23: 871148-B21 | F23: 543 | G23: 1-pack of Windows Server 2016 User CALs (Standard or Datacenter) | H23: 1 | I23: TS1L4-CALUSER | K23: 701608-A21 | L23: 22 | M23: 1-pack of Windows Server 20126 Device CALs (Standard or Datacenter) | N23: 1 | O23: TS1L4-CALDEV | Q23: 701609-A21 | R23: 22 | S23: Microsoft Windows Server 2016 Standard Edition Additional License 16 Core | T23: 2 | U23: TS1L4-WIN2 | V23: TS1L4-WIN2 | W23: 871157-A21 | X23: 1086 | Y23: ="" ->  | Z23: ="" ->  | AA23: ="" ->  | AB23: ="" ->  | AC23: ="" ->  | AD23: ="" -> 
A24: Microsoft Windows Server 2016 Datacenter Edition ROK 16 Core | B24: 1 | C24: TS1L4-WINDC1 | E24: 871153-B21 | F24: 2174 | G24: 1-pack of Windows Server 2016 User CALs (Standard or Datacenter) | H24: 1 | I24: TS1L4-CALUSER | K24: 701608-A21 | L24: 22 | M24: 1-pack of Windows Server 2016 Device CALs (Standard or Datacenter) | N24: 1 | O24: TS1L4-CALDEV | Q24: 701609-A21 | R24: 22 | S24: Microsoft Windows Server 2016 Datacenter Edition Additional License 16 Core | T24: 2 | U24: TS1L4-WINDC2 | V24: TS1L4-WINDC2 | W24: 871166-A21 | X24: 4348 | Y24: ="" ->  | Z24: ="" ->  | AA24: ="" ->  | AB24: ="" ->  | AC24: ="" ->  | AD24: ="" -> 
A25: CentOS 7.0 | B25: 1 | C25: TS1L4-LINUX | E25: ="" ->  | F25: 47 | G25: None | H25: ="" ->  | I25: ="" ->  | K25: ="" ->  | M25: None | N25: ="" ->  | O25: ="" ->  | Q25: ="" ->  | S25: ="" ->  | T25: ="" ->  | U25: ="" ->  | V25: ="" ->  | W25: ="" ->  | X25: ="" ->  | Y25: ="" ->  | Z25: ="" ->  | AA25: ="" ->  | AB25: ="" ->  | AC25: ="" ->  | AD25: ="" -> 
A26: T630
A27: No Operating System | B27: ="" ->  | C27: ="" ->  | D27: ="" ->  | E27: [611-BBBF] | F27: ="" ->  | M27: None | N27: ="" ->  | O27: ="" ->  | Q27: ="" ->  | Y27: None | Z27: ="" ->  | AA27: ="" ->  | AB27: ="" ->  | AC27: ="" -> 
A28: Kit Windows Server 2012, Standard Edition, 2 Socket, 2VM, ROK, COA + Media | B28: 1 | C28: 10L1-WIN | D28: S10L1-T630-WIN | E28: [638-BBBD] | F28: 543 | M28: 1-pack of Windows Server 2012 User CALs (Standard or Datacenter) | N28: 1 | O28: 10L1-CALUSER | Q28: [618-10778] | R28: 22 | Y28: 1-pack of Windows Server 2012 Device CALs (Standard or Datacenter) | Z28: 1 | AA28: 10L1-CALDEV | AB28: S10L1-T630-DEV | AC28: [618-10777] | AD28: 22
A29: CentOS 7.0 | B29: 1 | C29: TS1L4-LINUX | D29: S10L1-T630-LINUX | E29: ="" ->  | F29: 48 | M29: None | N29: ="" ->  | O29: ="" ->  | P29: ="" ->  | Q29: ="" ->  | Y29: None | Z29: ="" ->  | AA29: ="" ->  | AB29: ="" ->  | AC29: ="" -> 
A45: Microsoft Windows Server 2016 Standard Edition ROK 16 Core | B45: 1 | C45: TS1L4-WIN1 | D45: TS1L4-WIN1 | E45: 871148-B21 | F45: 543
A46: Microsoft Windows Server 2016 Standard Edition Additional License 16 Core | B46: 1 | C46: TS1L4-WIN2 | D46: TS1L4-WIN2 | E46: 871157-A21 | F46: 543
A47: Microsoft Windows Server 2016 Standard Edition Additional License 2 Core | B47: 1 | C47: TS1L4-WIN2CORE | D47: TS1L4-WIN2CORE | E47: 871159-A21 | F47: 54
A48: Microsoft Windows Server 2016 Datacenter Edition ROK 16 Core | B48: 1 | C48: TS1L4-WINDC1 | D48: TS1L4-WINDC1 | E48: 871153-B21 | F48: 2174
A49: Microsoft Windows Server 2016 Datacenter Edition Additional License 16 Core | B49: 1 | C49: TS1L4-WINDC2 | D49: TS1L4-WINDC2 | E49: 871166-A21 | F49: 2174
A50: MS WS16 CAL 1USR EMEA LTU | B50: 1 | C50: TS1L4-CALUSER | D50: TS1L4-CALUSER | E50: 871175-A21 | F50: 22
A51: MS WS16 CAL 1DEV EMEA LTU | B51: 1 | C51: TS1L4-CALDEV | D51: TS1L4-CALDEV | E51: 871176-A21 | F51: 22
B52: 1 | C52: TS1L4-LINUX | D52: TS1L4-LINUX | F52: 47
A54: Microsoft Windows Server 2016 Datacenter Edition Additional License 2 Core | E54: 871168-A21 | F54: 530

Sheet HDD (hidden)
A1: Hard Drives
A2: DL560
A3: HP 300GB 12G SAS 15K 2.5in SC ENT HDD | E3: 759208-B21 | F3: 140
A4: HPE 1.2TB SAS 10K SFF SC DS HDD | E4: 872479-B21 | F4: 278
B5: DL560 | C5: DL560 2 | D5: DL560 3
A6: HDD max | B6: 8 | C6: 8 | D6: 8
A7: HDD 300GB Base | B7: 2 | C7: 2 | D7: 2 | E7: Hot Spare for 300GB HDD | F7: ='Lotto4 Blade 2P'!#REF! ->  | G7: =IF(F7="Yes",1,0) ->  | H7: =#REF! ->  | I7: =IF(H7="Yes",1,0) ->  | J7: =#REF! ->  | K7: =IF(J7="Yes",1,0) -> 
A8: HDD 300GB Selected | B8: ='Lotto4 Blade 2P'!#REF! ->  | C8: =#REF! ->  | D8: =#REF! -> 
A9: HP 300GB 12G SAS 15K 2.5in SC ENT HDD | B9: 0 | C9: 0 | D9: 0
B10: 1 | C10: 1 | D10: 1
B11: 2 | C11: 2 | D11: 2
B12: 3 | C12: 3 | D12: 3
B13: 4 | C13: 4 | D13: 4
B14: 5 | C14: 5 | D14: 5
B15: 6 | C15: 6 | D15: 6
A16: HDD max | B16: 8 | C16: 8 | D16: 8
A17: HDD 300GB | B17: =B7+B8 ->  | C17: =C7+C8 ->  | D17: =D7+D8 -> 
A18: HDD 1TB Selected | B18: ='Lotto4 Blade 2P'!$C$51 -> No | C18: =#REF! ->  | D18: =#REF! ->  | E18: Hot Spare for 1TB HDD | F18: ='Lotto4 Blade 2P'!#REF! ->  | G18: =IF(F18="Yes",1,0) ->  | H18: =#REF! ->  | I18: =IF(H18="Yes",1,0) ->  | J18: =#REF! ->  | K18: =IF(J18="Yes",1,0) -> 
A19: HP 1TB 6G SAS 7.2K 2.5in SC MDL HDD | B19: =B$6-B$7-B$8 ->  | C19: =C$6-C$7-C$8 ->  | D19: =D$6-D$7-D$8 -> 
B20: =IF(B19-1<1,0,B19-1) -> 
A29: Hot Spare | B29: Yes
B30: No
A32: RAID Configuration | D32: HDD 300GB DL560 | F32: HDD 1TB DL560 | H32: HDD 300GB DL560 2 | J32: HDD 1TB DL560 2 | L32: HDD 300GB DL560 3 | N32: HDD 1TB DL560 3
A33: RAID Personalizzato | B33: =IF($B$106<=8,0,"") -> 0 | C33: ="" ->  | D33: =IF($G$7=0,A33,"") ->  | E33: =IF($G$7=0,C33,"") ->  | F33: =IF($G$18=0,A33,"") ->  | G33: =IF($G$18=0,C33,"") ->  | H33: =IF(I7=0,$A$33,"") ->  | I33: =IF(I7=0,$C$33,"") ->  | J33: =IF(I18=0,$A$33,"") ->  | K33: =IF(I18=0,$C$33,"") ->  | L33: =IF(K7=0,$A$33,"") ->  | M33: =IF(K7=0,$C$33,"") ->  | N33: =IF(K18=0,$A$33,"") ->  | O33: =IF(K18=0,$C$33,"") -> 
A34: RAID non Configurato (1-8 HDDs) | B34: 1 | C34: ="" ->  | D34: =IF($G$7=0,A34,"") ->  | E34: =IF($G$7=0,C34,"") ->  | F34: =IF($G$18=0,A34,"") ->  | G34: =IF($G$18=0,C34,"") ->  | H34: =IF(I7=0,$A$34,"") ->  | I34: =IF(I7=0,$C$34,"") ->  | J34: =IF(I18=0,$A$34,"") ->  | K34: =IF(I18=0,$C$34,"") ->  | L34: =IF(K7=0,$A$34,"") ->  | M34: =IF(K7=0,$C$34,"") ->  | N34: =IF(K18=0,$A$34,"") ->  | O34: =IF(K18=0,$C$34,"") -> 
A35: RAID 0 (1-8 HDDs) | B35: 1 | C35: ="" ->  | D35: =IF($G$7=0,A35,"") ->  | E35: =IF($G$7=0,C35,"") ->  | F35: =IF($G$18=0,A35,"") ->  | G35: =IF($G$18=0,C35,"") ->  | H35: =IF(I7=0,$A$35,"") ->  | I35: =IF(I7=0,$C$35,"") ->  | J35: =IF(I18=0,$A$35,"") ->  | K35: =IF(I18=0,$C$35,"") ->  | L35: =IF(K7=0,$A$35,"") ->  | M35: =IF(K7=0,$C$35,"") ->  | N35: =IF(K18=0,$A$35,"") ->  | O35: =IF(K18=0,$C$35,"") -> 
A36: RAID 1 (2 HDDs) | B36: 1 | C36: ="" ->  | D36: =IF($B$7+$B$8-$G$7=2,A36,"") ->  | E36: =IF($B$7+$B$8-$G$7=2,C36,"") ->  | F36: =IF($B$18-$G$18=2,A36,"") ->  | G36: =IF($B$18-$G$18=2,C36,"") ->  | H36: =IF($C$7+$C$8-I7=2,$A$36,"") ->  | I36: =IF($C$7+$C$8-I7=2,$C$36,"") ->  | J36: =IF($C$18-I18=2,A36,"") ->  | K36: =IF($C$18-I18=2,$C$36,"") ->  | L36: =IF($C$7+$C$8-K7=2,$A$36,"") ->  | M36: =IF($C$7+$C$8-K7=2,$C$36,"") ->  | N36: =IF($C$18-M18=2,E36,"") ->  | O36: =IF($D$18-K18=2,$C$36,"") -> 
A37: RAID 5 (da 3 a 10 HDDs) | B37: 1 | C37: ="" ->  | D37: =IF($B$7+$B$8-$G$7>=3,A37,"") ->  | E37: =IF($B$7+$B$8-$G$7>=3,C37,"") ->  | F37: =IF($B$18-$G$18>=3,A37,"") ->  | G37: =IF($B$18-$G$18>=3,C37,"") ->  | H37: =IF($C$7+$C$8-I7>=3,$A$37,"") ->  | I37: =IF($C$7+$C$8-I7>=3,$C$37,"") ->  | J37: =IF($C$18-I18>=3,$A$37,"") ->  | K37: =IF($C$18-I18>=3,$C$37,"") ->  | L37: =IF($D$7+$D$8-K7>=3,$A$37,"") ->  | M37: =IF($D$7+$D$8-K7>=3,$C$37,"") ->  | N37: =IF($D$18-K18>=3,$A$37,"") ->  | O37: =IF($D$18-K18>=3,$C$37,"") -> 
A38: RAID 10 (4-8 HDDs in pairs) | B38: 1 | C38: ="" ->  | D38: =IF($B$7+$B$8-$G$7=4,A38,"") ->  | E38: =IF($B$7+$B$8-$G$7=4,C38,"") ->  | F38: =IF($B$18-$G$18=4,A38,"") ->  | G38: =IF($B$18-$G$18=4,C38,"") ->  | H38: =IF($C$7+$C$8-I7=4,$A$38,"") ->  | I38: =IF($C$7+$C$8-I7=4,$C$38,"") ->  | J38: =IF($C$18-I18=4,$A$38,"") ->  | K38: =IF($C$18-I18=4,$C$38,"") ->  | L38: =IF($D$7+$D$8-K7=4,$A$38,"") ->  | M38: =IF($D$7+$D$8-K7=4,$C$38,"") ->  | N38: =IF($D$18-K18=4,$A$38,"") ->  | O38: =IF($D$18-K18=4,$C$38,"") -> 
A39: RAID 1+RAID 1 (2 + 2 HDDs) | B39: 1 | C39: ="" ->  | D39: =IF($B$7+$B$8-$G$7=4,A39,"") ->  | E39: =IF($B$7+$B$8-$G$7=4,C39,"") ->  | F39: =IF($B$18-$G$18=4,A39,"") ->  | G39: =IF($B$18-$G$18=4,C39,"") ->  | H39: =IF($C$7+$C$8-I7=4,$A$39,"") ->  | I39: =IF($C$7+$C$8-I7=4,$C$39,"") ->  | J39: =IF($C$18-I18=4,A39,"") ->  | K39: =IF($C$18-I18=4,$C$39,"") ->  | L39: =IF($D$7+$D$8-K7=4,$A$39,"") ->  | M39: =IF($D$7+$D$8-K7=4,$C$39,"") ->  | N39: =IF($D$18-K18=4,A39,"") ->  | O39: =IF($D$18-K18=4,$C$39,"") -> 
A40: RAID 1+RAID 5 (2 + 3-8 HDDs) | B40: 1 | C40: ="" ->  | D40: =IF($B$7+$B$8-$G$7>=5,A40,"") ->  | E40: =IF($B$7+$B$8-$G$7>=5,C40,"") ->  | F40: =IF($B$18-$G$18>=5,A40,"") ->  | G40: =IF($B$18-$G$18>=5,C40,"") ->  | H40: =IF($C$7+$C$8-I7>=5,$A$40,"") ->  | I40: =IF($C$7+$C$8-I7>=5,$C$40,"") ->  | J40: =IF($C$18-I18>=5,$A$40,"") ->  | K40: =IF($C$18-I18>=5,$C$40,"") ->  | L40: =IF($D$7+$D$8-K7>=5,$A$40,"") ->  | M40: =IF($D$7+$D$8-K7>=5,$C$40,"") ->  | N40: =IF($D$18-K18>=5,$A$40,"") ->  | O40: =IF($D$18-K18>=5,$C$40,"") -> 
A41: RAID 1 + RAID 10 (2 + 4 HDDs in pairs) | B41: 1 | C41: ="" ->  | D41: =IF($B$7+$B$8-$G$7=6,A41,"") ->  | E41: =IF($B$7+$B$8-$G$7=6,C41,"") ->  | F41: =IF($B$18-$G$18=6,A41,"") ->  | G41: =IF($B$18-$G$18=6,C41,"") ->  | H41: =IF($C$7+$C$8-I7=6,$A$41,"") ->  | I41: =IF($C$7+$C$8-I7=6,$C$41,"") ->  | J41: =IF($C$18-I18=6,A41,"") ->  | K41: =IF($C$18-I18=6,$C$41,"") ->  | L41: =IF($D$7+$D$8-M7=6,$A$41,"") ->  | M41: =IF($D$7+$D$8-M7=6,$C$41,"") ->  | N41: =IF($D$18-K18=6,A41,"") ->  | O41: =IF($D$18-K18=6,$C$41,"") -> 
A43: R730xd
A44: HP 300GB 12G SAS 15K 2.5in SC ENT HDD | C44: 10L2-HDD300GB | D44: S10L2-DL580-HDD300 | E44: 759208-B21 | F44: 140
A45: HP 1TB 6G SAS 7.2K 2.5in SC MDL HDD | C45: 10L2-HDD1TB | D45: S10L2-DL580-HDD1000 | E45: 652749-B21 | F45: 278
B46: =Chassis!#REF! ->  | C46: =#REF! ->  | D46: =#REF! -> 
A47: HDD max | B47: 10 | C47: 10 | D47: 10
A48: HDD 300GB Base | B48: 2 | C48: 2 | D48: 2
A49: Hot Spare for 300GB HDD | B49: =IF(B46="Yes",1,0) ->  | C49: =IF(C46="Yes",1,0) ->  | D49: =IF(D46="Yes",1,0) -> 
A50: HDD 300GB Selected | B50: =Chassis!#REF! ->  | C50: =#REF! ->  | D50: =#REF! -> 
A51: HP 300GB 12G SAS 15K 2.5in SC ENT HDD | B51: 0 | C51: 0 | D51: 0
B52: 1 | C52: 1 | D52: 1
B53: 2 | C53: 2 | D53: 2
B54: 3 | C54: 3 | D54: 3
B55: 4 | C55: 4 | D55: 4
B56: 5 | C56: 5 | D56: 5
B57: 6 | C57: 6 | D57: 6
B58: 7 | C58: 7 | D58: 7
B59: 8 | C59: 8 | D59: 8
B66: =Chassis!#REF! ->  | C66: =#REF! ->  | D66: =#REF! -> 
A67: HDD max | B67: 10 | C67: 10 | D67: 10
A68: HDD 300GB | B68: =B48+B50 ->  | C68: =C48+C50 ->  | D68: =D48+D50 -> 
A69: Hot Spare for 1TB HDD | B69: =IF(B66="Yes",1,0) ->  | C69: =IF(C66="Yes",1,0) ->  | D69: =IF(D66="Yes",1,0) -> 
A70: HDD 1TB Selected | B70: =Chassis!#REF! ->  | C70: =#REF! ->  | D70: =#REF! -> 
A71: HP 1TB 6G SAS 7.2K 2.5in SC MDL HDD | B71: =$B$67-$B$68-$B$70 ->  | C71: =$C$67-$C$68-$C$70 ->  | D71: =$D$67-$D$68-$D$70 -> 
B72: =IF(B71-1<1,0,B71-1) ->  | D72: =IF(D71-1<1,0,D71-1) -> 
A89: RAID Configuration | D89: HDD 300GB R730xd | F89: HDD 1TB R730xd | H89: HDD 300GB R730xd 2 | J89: HDD 1TB R730xd 2 | L89: HDD 300GB R730xd 3 | N89: HDD 1TB R730xd 3
A90: RAID Personalizzato | B90: =IF($B$106<=8,0,"") -> 0 | C90: [780-BBJC] | D90: =IF($B$49=0,A90,"") ->  | E90: =IF($B$49=0,C90,"") ->  | F90: =IF($B$69=0,A90,"") ->  | G90: =IF($B$69=0,C90,"") ->  | H90: =IF($C$49=0,A90,"") ->  | I90: =IF($C$49=0,C90,"") ->  | J90: =IF($C$69=0,A90,"") ->  | K90: =IF($C$69=0,C90,"") ->  | L90: =IF($D$49=0,A90,"") ->  | M90: =IF($D$49=0,C90,"") ->  | N90: =IF($D$69=0,A90,"") ->  | O90: =IF($D$69=0,C90,"") -> 
A91: RAID non Configurato (1-8 HDDs) | B91: 1 | C91: [780-BBJD] | D91: =IF($B$49=0,A91,"") ->  | E91: =IF($B$49=0,C91,"") ->  | F91: =IF($B$69=0,A91,"") ->  | G91: =IF($B$69=0,C91,"") ->  | H91: =IF($C$49=0,A91,"") ->  | I91: =IF($C$49=0,C91,"") ->  | J91: =IF($C$69=0,A91,"") ->  | K91: =IF($C$69=0,C91,"") ->  | L91: =IF($D$49=0,A91,"") ->  | M91: =IF($D$49=0,C91,"") ->  | N91: =IF($D$69=0,A91,"") ->  | O91: =IF($D$69=0,C91,"") -> 
A92: RAID 0 (1-8 HDDs) | B92: 1 | C92: [780-BBJF] | D92: =IF($B$49=0,A92,"") ->  | E92: =IF($B$49=0,C92,"") ->  | F92: =IF($B$69=0,A92,"") ->  | G92: =IF($B$69=0,C92,"") ->  | H92: =IF($C$49=0,A92,"") ->  | I92: =IF($C$49=0,C92,"") ->  | J92: =IF($C$69=0,A92,"") ->  | K92: =IF($C$69=0,C92,"") ->  | L92: =IF($D$49=0,A92,"") ->  | M92: =IF($D$49=0,C92,"") ->  | N92: =IF($D$69=0,A92,"") ->  | O92: =IF($D$69=0,C92,"") -> 
A93: RAID 1 (2 HDDs) | B93: 1 | C93: [780-BBJK] | D93: =IF($B$48+$B$50-$B$49=2,A93,"") ->  | E93: =IF($B$48+$B$50-$B$49=2,C93,"") ->  | F93: =IF($B$70-$B$69=2,A93,"") ->  | G93: =IF($B$70-$B$69=2,C93,"") ->  | H93: =IF($C$48+$C$50-$C$49=2,A93,"") ->  | I93: =IF($C$48+$C$50-$C$49=2,C93,"") ->  | J93: =IF($C$70-$C$69=2,A93,"") ->  | K93: =IF($C$70-$C$69=2,C93,"") ->  | L93: =IF($D$48+$D$50-$D$49=2,A93,"") ->  | M93: =IF($D$48+$D$50-$D$49=2,C93,"") ->  | N93: =IF($D$70-$D$69=2,A93,"") ->  | O93: =IF($D$70-$D$69=2,C93,"") -> 
A94: RAID 5 (da 3 a 10 HDDs) | B94: 1 | C94: [780-BBJL] | D94: =IF($B$48+$B$50-$B$49>=3,A94,"") ->  | E94: =IF($B$48+$B$50-$B$49>=3,C94,"") ->  | F94: =IF($B$70-$B$69>=3,A94,"") ->  | G94: =IF($B$70-$B$69>=3,C94,"") ->  | H94: =IF($C$48+$C$50-$C$49>=3,A94,"") ->  | I94: =IF($C$48+$C$50-$C$49>=3,C94,"") ->  | J94: =IF($C$70-$C$69>=3,A94,"") ->  | K94: =IF($C$70-$C$69>=3,C94,"") ->  | L94: =IF($D$48+$D$50-$D$49>=3,A94,"") ->  | M94: =IF($D$48+$D$50-$D$49>=3,C94,"") ->  | N94: =IF($D$70-$D$69>=3,A94,"") ->  | O94: =IF($D$70-$D$69>=3,C94,"") -> 
A95: RAID 10 (4-8 HDDs in pairs) | B95: 1 | C95: [780-BBJN] | D95: =IF($B$48+$B$50-$B$49=4,A95,"") ->  | E95: =IF($B$48+$B$50-$B$49=4,C95,"") ->  | F95: =IF($B$70-$B$69=4,A95,"") ->  | G95: =IF($B$70-$B$69=4,C95,"") ->  | H95: =IF($C$48+$C$50-$C$49=4,A95,"") ->  | I95: =IF($C$48+$C$50-$C$49=4,C95,"") ->  | J95: =IF($C$70-$C$69=4,A95,"") ->  | K95: =IF($C$70-$C$69=4,C95,"") ->  | L95: =IF($D$48+$D$50-$D$49=4,A95,"") ->  | M95: =IF($D$48+$D$50-$D$49=4,C95,"") ->  | N95: =IF($D$70-$D$69=4,A95,"") ->  | O95: =IF($D$70-$D$69=4,C95,"") -> 
A96: RAID 1+RAID 1 (2 + 2 HDDs) | B96: 1 | C96: [780-BBJO] | D96: =IF($B$48+$B$50-$B$49=4,A96,"") ->  | E96: =IF($B$48+$B$50-$B$49=4,C96,"") ->  | F96: =IF($B$70-$B$69=4,A96,"") ->  | G96: =IF($B$70-$B$69=4,C96,"") ->  | H96: =IF($C$48+$C$50-$C$49=4,A96,"") ->  | I96: =IF($C$48+$C$50-$C$49=4,C96,"") ->  | J96: =IF($C$70-$C$69=4,A96,"") ->  | K96: =IF($C$70-$C$69=4,C96,"") ->  | L96: =IF($D$48+$D$50-$D$49=4,A96,"") ->  | M96: =IF($D$48+$D$50-$D$49=4,C96,"") ->  | N96: =IF($D$70-$D$69=4,A96,"") ->  | O96: =IF($D$70-$D$69=4,C96,"") -> 
A97: RAID 1+RAID 5 (2 + 3-8 HDDs) | B97: 1 | C97: [780-BBJP] | D97: =IF($B$48+$B$50-$B$49>=5,A97,"") ->  | E97: =IF($B$48+$B$50-$B$49>=5,C97,"") ->  | F97: =IF($B$70-$B$69>=5,A97,"") ->  | G97: =IF($B$70-$B$69>=5,C97,"") ->  | H97: =IF($C$48+$C$50-$C$49>=5,A97,"") ->  | I97: =IF($C$48+$C$50-$C$49>=5,C97,"") ->  | J97: =IF($C$70-$C$69>=5,A97,"") ->  | K97: =IF($C$70-$C$69>=5,C97,"") ->  | L97: =IF($D$48+$D$50-$D$49>=5,A97,"") ->  | M97: =IF($D$48+$D$50-$D$49>=5,C97,"") ->  | N97: =IF($D$70-$D$69>=5,A97,"") ->  | O97: =IF($D$70-$D$69>=5,C97,"") -> 
A98: RAID 1 + RAID 10 (2 + 4 HDDs in pairs) | B98: 1 | C98: [780-BBJQ] | D98: =IF($B$48+$B$50-$B$49=6,A98,"") ->  | E98: =IF($B$48+$B$50-$B$49=6,C98,"") ->  | F98: =IF($B$70-$B$69=6,A98,"") ->  | G98: =IF($B$70-$B$69=6,C98,"") ->  | H98: =IF($C$48+$C$50-$C$49=6,A98,"") ->  | I98: =IF($C$48+$C$50-$C$49=6,C98,"") ->  | J98: =IF($C$70-$C$69=6,A98,"") ->  | K98: =IF($C$70-$C$69=6,C98,"") ->  | L98: =IF($D$48+$D$50-$D$49=6,A98,"") ->  | M98: =IF($D$48+$D$50-$D$49=6,C98,"") ->  | N98: =IF($D$70-$D$69=6,A98,"") ->  | O98: =IF($D$70-$D$69=6,C98,"") -> 
A105: T630
A106: 300GB 10K RPM SAS 12Gbps 2.5in Hot-plug Hard Drive,CusKit | C106: 10L1-HDD300GB-T | D106: S10L1-T630-HDD300 | E106: [400-AJOQ] | F106: 91
A107: 1TB 7.2K RPM NLSAS 6Gbps 2.5in Hot-plug Hard Drive,13G,CusKit | C107: 10L1-HDD1TB | D107: S10L1-T630-HDD1000 | E107: [400-AEFF] | F107: 296
A109: HDD max | B109: 32
A110: HDD 300GB Base | B110: 2
A111: HDD 300GB Selected | B111: =#REF! -> 
A112: 300GB 10K RPM SAS 12Gbps 2.5in Hot-plug Hard Drive,CusKit | B112: 0 | D112: Hot Spare for 300GB HDD | E112: =#REF! ->  | F112: =IF(E112="Yes",1,0) -> 
B113: 1
B114: 2
B115: 3
B116: 4
B117: 5
B118: 6
B119: 7
B120: 8
B121: 9
B122: 10
B123: 11
B124: 12
B125: 13
B126: 14
B127: 15
B128: 16
B129: 17
B130: 18
B131: 19
B132: 20
B133: 21
B134: 22
B135: 23
B136: 24
B137: 25
B138: 26
B139: 27
B140: 28
B141: 29
B142: 30
A143: HDD max | B143: 32
A144: HDD 300GB | B144: =B110+B111 -> 
A145: HDD 1TB Selected | B145: =#REF! ->  | D145: Hot Spare for 1TB HDD | E145: =#REF! ->  | F145: =IF(E145="Yes",1,0) -> 
A146: 1TB 7.2K RPM NLSAS 6Gbps 2.5in Hot-plug Hard Drive,13G,CusKit | B146: =$B$143-$B$144-$B$145 -> 
B147: =IF(B146-1<1,0,B146-1) -> 
B155: =IF(B154-1<1,0,B154-1) -> 
A178: RAID Configuration | D178: HDD 300GB | F178: HDD 1TB
A179: C1 - No RAID for H330 (1-8 HDDs) | B179: =IF($B$106<=8,0,"") -> 0 | C179: [780-BBJC] | D179: =IF($F$112=0,A179,"") ->  | E179: =IF($F$112=0,C179,"") ->  | F179: =IF($F$145=0,A179,"") ->  | G179: =IF($F$145=0,C179,"") -> 
A180: C10 - Unconfigured RAID for H330 (1-8 HDDs) | B180: 1 | C180: [780-BBJD] | D180: =IF($F$112=0,A180,"") ->  | E180: =IF($F$112=0,C180,"") ->  | F180: =IF($F$145=0,A180,"") ->  | G180: =IF($F$145=0,C180,"") -> 
A181: C2 - RAID 0 for H330 (1-8 HDDs) | B181: 1 | C181: [780-BBJF] | D181: =IF($F$112=0,A181,"") ->  | E181: =IF($F$112=0,C181,"") ->  | F181: =IF($F$145=0,A181,"") ->  | G181: =IF($F$145=0,C181,"") -> 
A182: C3 - RAID 1 for H330 (2 HDDs) | B182: 1 | C182: [780-BBJK] | D182: =IF($B$110+$B$111-$F$112=2,A182,"") ->  | E182: =IF($B$110+$B$111-$F$112=2,C182,"") ->  | F182: =IF($B$145-$F$145=2,A182,"") ->  | G182: =IF($B$145-$F$145=2,C182,"") -> 
A183: C4 - RAID 5 for H330 (3-8 HDDs) | B183: 1 | C183: [780-BBJL] | D183: =IF($B$110+$B$111-$F$112>=3,A183,"") ->  | E183: =IF($B$110+$B$111-$F$112>=3,C183,"") ->  | F183: =IF($B$145-$F$145>=3,A183,"") ->  | G183: =IF($B$145-$F$145>=3,C183,"") -> 
A184: C6 - RAID 10 forH330 (4-8 HDDs in pairs) | B184: 1 | C184: [780-BBJN] | D184: =IF($B$110+$B$111-$F$112=4,A184,"") ->  | E184: =IF($B$110+$B$111-$F$112=4,C184,"") ->  | F184: =IF($B$145-$F$145=4,A184,"") ->  | G184: =IF($B$145-$F$145=4,C184,"") -> 
A185: C7 - RAID 1+RAID 1 for H330 (2 + 2 HDDs) | B185: 1 | C185: [780-BBJO] | D185: =IF($B$110+$B$111-$F$112=4,A185,"") ->  | E185: =IF($B$110+$B$111-$F$112=4,C185,"") ->  | F185: =IF($B$145-$F$145=4,A185,"") ->  | G185: =IF($B$145-$F$145=4,C185,"") -> 
A186: C8 - RAID 1+RAID 5 for H330 (2 + 3-8 HDDs) | B186: 1 | C186: [780-BBJP] | D186: =IF($B$110+$B$111-$F$112>=5,A186,"") ->  | E186: =IF($B$110+$B$111-$F$112>=5,C186,"") ->  | F186: =IF($B$145-$F$145>=5,A186,"") ->  | G186: =IF($B$145-$F$145>=5,C186,"") -> 
A187: C9 - RAID 1+RAID 10 for H330 (2 + 4 HDDs in pairs) | B187: 1 | C187: [780-BBJQ] | D187: =IF($B$110+$B$111-$F$112=6,A187,"") ->  | E187: =IF($B$110+$B$111-$F$112=6,C187,"") ->  | F187: =IF($B$145-$F$145=6,A187,"") ->  | G187: =IF($B$145-$F$145=6,C187,"") -> 

Sheet PCI (hidden)
A1: Scheda Mezzanine Slot 2
A2: BL460c Gen9
A3: None | B3: ="" ->  | C3: ="" ->  | D3: ="" ->  | E3: ="" ->  | F3: ="" ->  | G3: ="" ->  | H3: 0 | I3: ="" -> 
A4: HPE FlexFabric 10Gb 2-port 534M Adapter | B4: 1 | C4: S4-700748-B21 | D4: S4-700748-B21 | E4: 700748-B21 | F4: 532
A5: HPE Ethernet 10Gb 2-port 560M Adapter | B5: 1 | C5: S4-665246-B21 | D5: S4-665246-B21 | E5: 665246-B21 | F5: 596
A7: Altre Schede per Mezzanine Slot 2
A8: HPE Ethernet 1Gb 4-port 366M Adapter | B8: 1 | C8: TS1L4-615729-B21 | D8: TS1L4-615729-B21 | E8: 615729-B21
A9: HPE FlexFabric 20Gb 2-port 630M Adapter | B9: 1 | C9: TS1L4-700076-B21 | D9: TS1L4-700076-B21 | E9: 700076-B21
A10: HPE FlexFabric 10Gb 2-port 534M Adapter | B10: 1 | C10: TS1L4-700748-B21 | D10: TS1L4-700748-B21 | E10: 700748-B21
A11: HPE FlexFabric 20Gb 2-port 650M Adapter | B11: 1 | C11: TS1L4-700767-B21 | D11: TS1L4-700767-B21 | E11: 700767-B21
A12: HPE QMH2572 8Gb Fibre Channel Host Bus Adapter for BladeSystem c-Class | B12: 1 | C12: TS1L4-651281-B21 | D12: TS1L4-651281-B21 | E12: 651281-B21
A13: HPE LPe1205A 8Gb Fibre Channel Host Bus Adapter for BladeSystem c-Class | B13: 1 | C13: TS1L4-659818-B21 | D13: TS1L4-659818-B21 | E13: 659818-B21
A14: HPE QMH2672 16Gb Fibre Channel Host Bus Adapter | B14: 1 | C14: TS1L4-710608-B21 | D14: TS1L4-710608-B21 | E14: 710608-B21
A15: HPE LPe1605 16Gb Fibre Channel HBA for BladeSystem c-Class | B15: 1 | C15: TS1L4-718203-B21 | D15: TS1L4-718203-B21 | E15: 718203-B21
A16: HP InfiniBand FDR 2-port 545M Adapter | B16: 1 | C16: TS1L4-702213-B21 | D16: TS1L4-702213-B21 | E16: 702213-B21
A17: HPE InfiniBand QDR/Ethernet 10Gb 2-port 544+M Adapter | B17: 1 | C17: TS1L4-764282-B21 | D17: TS1L4-764282-B21 | E17: 764282-B21
A18: HPE InfiniBand FDR/Ethernet 10Gb/40Gb 2-port 544+M Adapter | B18: 1 | C18: TS1L4-764283-B21 | D18: TS1L4-764283-B21 | E18: 764283-B21
A19: HPE Smart Array P741m/2GB FBWC 12Gb 4-ports Ext Mezzanine SAS Controller | B19: 1 | C19: TS1L4-726782-B21 | D19: TS1L4-726782-B21 | E19: 726782-B21
A21: Additional Card for PCIe Slot 3
A22: DL560
A23: None | H23: 0
A24: HPE Ethernet 1Gb 2P 332T Adptr | B24: 1 | C24: 10L2-LAN1GB | D24: S10L1-DL560-LAN1 | E24: 615732-B21 | F24: 35 | H24: 0
A25: HPE Ethernet 10Gb 2P 530SFP+ Adptr | B25: 1 | C25: 10L2-LAN10GB | D25: S10L1-DL560-LAN10 | E25: 652503-B21 | F25: 716 | G25: HPE BLc 10G SFP+ SR Transceiver | H25: 2 | I25: 455883-B21
A26: HPE StoreFabric CN1200E 10Gb CNA | B26: 1 | C26: 10L2-CNA10 | D26: S10L1-DL560-CNA10 | E26: E7Y06A | F26: 778 | G26: HPE BLc 10G SFP+ SR Transceiver | H26: 2 | I26: 455883-B21
A27: HPE 82Q 8Gb Dual Port PCI-e FC HBA | B27: 1 | C27: 10L2-FC | D27: S10L1-DL560-FC | E27: AJ764A | F27: 889 | H27: 0
A29: Additional Card for PCIe Slot 4
A30: DL560
A31: None | H31: 0
A32: HPE Ethernet 1Gb 2P 332T Adptr | B32: 1 | C32: 10L2-LAN1GB | D32: S10L1-DL560-LAN1 | E32: 615732-B21 | F32: 35 | H32: 0
A33: HPE Ethernet 10Gb 2P 530SFP+ Adptr | B33: 1 | C33: 10L2-LAN10GB | D33: S10L1-DL560-LAN10 | E33: 652503-B21 | F33: 716 | G33: HPE BLc 10G SFP+ SR Transceiver | H33: 2 | I33: 455883-B21
A34: HPE StoreFabric CN1200E 10Gb CNA | B34: 1 | C34: 10L2-CNA10 | D34: S10L1-DL560-CNA10 | E34: E7Y06A | F34: 778 | G34: HPE BLc 10G SFP+ SR Transceiver | H34: 2 | I34: 455883-B21
A35: HPE 82Q 8Gb Dual Port PCI-e FC HBA | B35: 1 | C35: 10L2-FC | D35: S10L1-DL560-FC | E35: AJ764A | F35: 889 | H35: 0
A37: Additional Card for PCIe Slot 5
A38: DL560
A39: None | H39: 0
A40: HPE Ethernet 1Gb 2P 332T Adptr | B40: 1 | C40: 10L2-LAN1GB | D40: S10L1-DL560-LAN1 | E40: 615732-B21 | F40: 35 | H40: 0
A41: HPE Ethernet 10Gb 2P 530SFP+ Adptr | B41: 1 | C41: 10L2-LAN10GB | D41: S10L1-DL560-LAN10 | E41: 652503-B21 | F41: 716 | G41: HPE BLc 10G SFP+ SR Transceiver | H41: 2 | I41: 455883-B21
A42: HPE StoreFabric CN1200E 10Gb CNA | B42: 1 | C42: 10L2-CNA10 | D42: S10L1-DL560-CNA10 | E42: E7Y06A | F42: 778 | G42: HPE BLc 10G SFP+ SR Transceiver | H42: 2 | I42: 455883-B21
A43: HPE 82Q 8Gb Dual Port PCI-e FC HBA | B43: 1 | C43: 10L2-FC | D43: S10L1-DL560-FC | E43: AJ764A | F43: 889 | H43: 0
A45: Additional Card for PCIe Slot 6
A46: DL560
A47: None | H47: 0
A48: HPE Ethernet 1Gb 2P 332T Adptr | B48: 1 | C48: 10L2-LAN1GB | D48: S10L1-DL560-LAN1 | E48: 615732-B21 | F48: 35 | H48: 0
A49: HPE Ethernet 10Gb 2P 530SFP+ Adptr | B49: 1 | C49: 10L2-LAN10GB | D49: S10L1-DL560-LAN10 | E49: 652503-B21 | F49: 716 | G49: HPE BLc 10G SFP+ SR Transceiver | H49: 2 | I49: 455883-B21
A50: HPE StoreFabric CN1200E 10Gb CNA | B50: 1 | C50: 10L2-CNA10 | D50: S10L1-DL560-CNA10 | E50: E7Y06A | F50: 778 | G50: HPE BLc 10G SFP+ SR Transceiver | H50: 2 | I50: 455883-B21
A51: HPE 82Q 8Gb Dual Port PCI-e FC HBA | B51: 1 | C51: 10L2-FC | D51: S10L1-DL560-FC | E51: AJ764A | F51: 889 | H51: 0
A53: Additional Card for PCIe Slot 7
A54: DL560
A55: None | H55: 0
A56: HPE Ethernet 1Gb 2P 332T Adptr | B56: 1 | C56: 10L2-LAN1GB | D56: S10L1-DL560-LAN1 | E56: 615732-B21 | F56: 35 | H56: 0
A57: HPE Ethernet 10Gb 2P 530SFP+ Adptr | B57: 1 | C57: 10L2-LAN10GB | D57: S10L1-DL560-LAN10 | E57: 652503-B21 | F57: 716 | G57: HPE BLc 10G SFP+ SR Transceiver | H57: 2 | I57: 455883-B21
A58: HPE StoreFabric CN1200E 10Gb CNA | B58: 1 | C58: 10L2-CNA10 | D58: S10L1-DL560-CNA10 | E58: E7Y06A | F58: 778 | G58: HPE BLc 10G SFP+ SR Transceiver | H58: 2 | I58: 455883-B21
A59: HPE 82Q 8Gb Dual Port PCI-e FC HBA | B59: 1 | C59: 10L2-FC | D59: S10L1-DL560-FC | E59: AJ764A | F59: 889 | H59: 0
A62: Additional Card for PCIe Slot 1
A63: DL580
A64: None | H64: 0
A65: HPE Ethernet 1Gb 2P 332T Adptr | B65: 1 | C65: 10L2-LAN1GB | D65: S10L1-DL560-LAN1 | E65: 615732-B21 | F65: 35 | H65: 0
A66: HPE Ethernet 10Gb 2P 530SFP+ Adptr | B66: 1 | C66: 10L2-LAN10GB | D66: S10L1-DL560-LAN10 | E66: 652503-B21 | F66: 716 | G66: HPE BLc 10G SFP+ SR Transceiver | H66: 2 | I66: 455883-B21
A67: HPE StoreFabric CN1200E 10Gb CNA | B67: 1 | C67: 10L2-CNA10 | D67: S10L1-DL560-CNA10 | E67: E7Y06A | F67: 778 | G67: HPE BLc 10G SFP+ SR Transceiver | H67: 2 | I67: 455883-B21
A68: HPE 82Q 8Gb Dual Port PCI-e FC HBA | B68: 1 | C68: 10L2-FC | D68: S10L1-DL560-FC | E68: AJ764A | F68: 889 | H68: 0
A70: Additional Card for PCIe Slot 2
A71: DL580
A72: None | H72: 0
A73: HPE Ethernet 1Gb 2P 332T Adptr | B73: 1 | C73: 10L2-LAN1GB | D73: S10L1-DL560-LAN1 | E73: 615732-B21 | F73: 35 | H73: 0
A74: HPE Ethernet 10Gb 2P 530SFP+ Adptr | B74: 1 | C74: 10L2-LAN10GB | D74: S10L1-DL560-LAN10 | E74: 652503-B21 | F74: 716 | G74: HPE BLc 10G SFP+ SR Transceiver | H74: 2 | I74: 455883-B21
A75: HPE StoreFabric CN1200E 10Gb CNA | B75: 1 | C75: 10L2-CNA10 | D75: S10L1-DL560-CNA10 | E75: E7Y06A | F75: 778 | G75: HPE BLc 10G SFP+ SR Transceiver | H75: 2 | I75: 455883-B21
A76: HPE 82Q 8Gb Dual Port PCI-e FC HBA | B76: 1 | C76: 10L2-FC | D76: S10L1-DL560-FC | E76: AJ764A | F76: 889 | H76: 0
A78: Additional Card for PCIe Slot 3
A79: DL580
A80: None | H80: 0
A81: HPE Ethernet 1Gb 2P 332T Adptr | B81: 1 | C81: 10L2-LAN1GB | D81: S10L1-DL560-LAN1 | E81: 615732-B21 | F81: 35 | H81: 0
A82: HPE Ethernet 10Gb 2P 530SFP+ Adptr | B82: 1 | C82: 10L2-LAN10GB | D82: S10L1-DL560-LAN10 | E82: 652503-B21 | F82: 716 | G82: HPE BLc 10G SFP+ SR Transceiver | H82: 2 | I82: 455883-B21
A83: HPE StoreFabric CN1200E 10Gb CNA | B83: 1 | C83: 10L2-CNA10 | D83: S10L1-DL560-CNA10 | E83: E7Y06A | F83: 778 | G83: HPE BLc 10G SFP+ SR Transceiver | H83: 2 | I83: 455883-B21
A84: HPE 82Q 8Gb Dual Port PCI-e FC HBA | B84: 1 | C84: 10L2-FC | D84: S10L1-DL560-FC | E84: AJ764A | F84: 889 | H84: 0
A86: Additional Card for PCIe Slot 4
A87: DL580
A88: None | H88: 0
A89: HPE Ethernet 1Gb 2P 332T Adptr | B89: 1 | C89: 10L2-LAN1GB | D89: S10L1-DL560-LAN1 | E89: 615732-B21 | F89: 35 | H89: 0
A90: HPE Ethernet 10Gb 2P 530SFP+ Adptr | B90: 1 | C90: 10L2-LAN10GB | D90: S10L1-DL560-LAN10 | E90: 652503-B21 | F90: 716 | G90: HPE BLc 10G SFP+ SR Transceiver | H90: 2 | I90: 455883-B21
A91: HPE StoreFabric CN1200E 10Gb CNA | B91: 1 | C91: 10L2-CNA10 | D91: S10L1-DL560-CNA10 | E91: E7Y06A | F91: 778 | G91: HPE BLc 10G SFP+ SR Transceiver | H91: 2 | I91: 455883-B21
A92: HPE 82Q 8Gb Dual Port PCI-e FC HBA | B92: 1 | C92: 10L2-FC | D92: S10L1-DL560-FC | E92: AJ764A | F92: 889 | H92: 0
A94: Additional Card for PCIe Slot 5
A95: DL580
A96: None | H96: 0
A97: HPE Ethernet 1Gb 2P 332T Adptr | B97: 1 | C97: 10L2-LAN1GB | D97: S10L1-DL560-LAN1 | E97: 615732-B21 | F97: 35 | H97: 0
A98: HPE Ethernet 10Gb 2P 530SFP+ Adptr | B98: 1 | C98: 10L2-LAN10GB | D98: S10L1-DL560-LAN10 | E98: 652503-B21 | F98: 716 | G98: HP BLc 10G SFP+ SR Transceiver | H98: 2 | I98: 455883-B21
A99: HPE StoreFabric CN1200E 10Gb CNA | B99: 1 | C99: 10L2-CNA10 | D99: S10L1-DL560-CNA10 | E99: E7Y06A | F99: 778 | G99: HP BLc 10G SFP+ SR Transceiver | H99: 2 | I99: 455883-B21
A100: HPE 82Q 8Gb Dual Port PCI-e FC HBA | B100: 1 | C100: 10L2-FC | D100: S10L1-DL560-FC | E100: AJ764A | F100: 889 | H100: 0
A102: Additional Card for PCIe Slot 6
A103: DL580
A104: None | H104: 0
A105: HPE Ethernet 1Gb 2P 332T Adptr | B105: 1 | C105: 10L2-LAN1GB | D105: S10L1-DL560-LAN1 | E105: 615732-B21 | F105: 35 | H105: 0
A106: HPE Ethernet 10Gb 2P 530SFP+ Adptr | B106: 1 | C106: 10L2-LAN10GB | D106: S10L1-DL560-LAN10 | E106: 652503-B21 | F106: 716 | G106: HPE BLc 10G SFP+ SR Transceiver | H106: 2 | I106: 455883-B21
A107: HPE StoreFabric CN1200E 10Gb CNA | B107: 1 | C107: 10L2-CNA10 | D107: S10L1-DL560-CNA10 | E107: E7Y06A | F107: 778 | G107: HPE BLc 10G SFP+ SR Transceiver | H107: 2 | I107: 455883-B21
A108: HPE 82Q 8Gb Dual Port PCI-e FC HBA | B108: 1 | C108: 10L2-FC | D108: S10L1-DL560-FC | E108: AJ764A | F108: 889 | H108: 0
A110: Additional Card for PCIe Slot 7
A111: DL580
A112: None | H112: 0
A113: HPE Ethernet 1Gb 2P 332T Adptr | B113: 1 | C113: 10L2-LAN1GB | D113: S10L1-DL560-LAN1 | E113: 615732-B21 | F113: 35 | H113: 0
A114: HPE Ethernet 10Gb 2P 530SFP+ Adptr | B114: 1 | C114: 10L2-LAN10GB | D114: S10L1-DL560-LAN10 | E114: 652503-B21 | F114: 716 | G114: HPE BLc 10G SFP+ SR Transceiver | H114: 2 | I114: 455883-B21
A115: HPE StoreFabric CN1200E 10Gb CNA | B115: 1 | C115: 10L2-CNA10 | D115: S10L1-DL560-CNA10 | E115: E7Y06A | F115: 778 | G115: HPE BLc 10G SFP+ SR Transceiver | H115: 2 | I115: 455883-B21
A116: HPE 82Q 8Gb Dual Port PCI-e FC HBA | B116: 1 | C116: 10L2-FC | D116: S10L1-DL560-FC | E116: AJ764A | F116: 889 | H116: 0
A118: Additional Card for PCIe Slot 8
A119: DL580
A120: None | H120: 0
A121: HPE Ethernet 1Gb 2P 332T Adptr | B121: 1 | C121: 10L2-LAN1GB | D121: S10L1-DL560-LAN1 | E121: 615732-B21 | F121: 35 | H121: 0
A122: HPE Ethernet 10Gb 2P 530SFP+ Adptr | B122: 1 | C122: 10L2-LAN10GB | D122: S10L1-DL560-LAN10 | E122: 652503-B21 | F122: 716 | G122: HPE BLc 10G SFP+ SR Transceiver | H122: 2 | I122: 455883-B21
A123: HPE StoreFabric CN1200E 10Gb CNA | B123: 1 | C123: 10L2-CNA10 | D123: S10L1-DL560-CNA10 | E123: E7Y06A | F123: 778 | G123: HPE BLc 10G SFP+ SR Transceiver | H123: 2 | I123: 455883-B21
A124: HPE 82Q 8Gb Dual Port PCI-e FC HBA | B124: 1 | C124: 10L2-FC | D124: S10L1-DL560-FC | E124: AJ764A | F124: 889 | H124: 0
A126: Additional Card for PCIe Slot 9
A127: DL580
A128: None | H128: 0
A129: HPE Ethernet 1Gb 2P 332T Adptr | B129: 1 | C129: 10L2-LAN1GB | D129: S10L1-DL560-LAN1 | E129: 615732-B21 | F129: 35 | H129: 0
A130: HPE Ethernet 10Gb 2P 530SFP+ Adptr | B130: 1 | C130: 10L2-LAN10GB | D130: S10L1-DL560-LAN10 | E130: 652503-B21 | F130: 716 | G130: HPE BLc 10G SFP+ SR Transceiver | H130: 2 | I130: 455883-B21
A131: HPE StoreFabric CN1200E 10Gb CNA | B131: 1 | C131: 10L2-CNA10 | D131: S10L1-DL560-CNA10 | E131: E7Y06A | F131: 778 | G131: HPE BLc 10G SFP+ SR Transceiver | H131: 2 | I131: 455883-B21
A132: HPE 82Q 8Gb Dual Port PCI-e FC HBA | B132: 1 | C132: 10L2-FC | D132: S10L1-DL560-FC | E132: AJ764A | F132: 889 | H132: 0
A134: Aggiungere Coppia di Processori
A168: Additional Card for PCIe Slot 1 (Full height) (CPU1)
A169: T630
A170: None | B170: ="" ->  | C170: ="" ->  | D170: ="" ->  | E170: ="" ->  | F170: ="" ->  | G170: ="" ->  | H170: 0 | I170: ="" -> 
A171: Broadcom 5720 DP 1Gb Network Interface Card,Full Height,CusKit | B171: 1 | C171: 10L1-LAN1GB | D171: S10L1-T630-LAN1 | E171: [540-BBGY] | F171: 35 | H171: 0
A172: Emulex LPE 12002, Dual Port 8Gb Fibre Channel HBA,Full Height,CusKit | B172: 1 | C172: 10L1-FC | D172: S10L1-T630-FC | E172: [406-BBGR] | F172: 940 | H172: 0
A173: QLogic 57810 Dual Port 10Gb Direct Attach/SFP+ Network Adapter,Full Height,CusKit | B173: 1 | C173: 10L1-LAN10GB | D173: S10L1-T630-LAN10 | E173: [540-BBGS] | F173: 417 | G173: PowerEdge SFP+, 10GbE SR/SX, Optical Tranceiver, LC Connector, for Intel and Broadcom,CusKit | H173: 2 | I173: [407-BBOK]
A176: Additional Card for PCIe Slot 2 (Full height) (CPU1)
A177: T630
A178: None | B178: ="" ->  | C178: ="" ->  | D178: ="" ->  | E178: ="" ->  | F178: ="" ->  | G178: ="" ->  | H178: 0 | I178: ="" -> 
A179: Broadcom 5720 DP 1Gb Network Interface Card,Full Height,CusKit | B179: 1 | C179: 10L1-LAN1GB | D179: S10L1-T630-LAN1 | E179: [540-BBGY] | F179: 35 | H179: 0
A180: Emulex LPE 12002, Dual Port 8Gb Fibre Channel HBA,Full Height,CusKit | B180: 1 | C180: 10L1-FC | D180: S10L1-T630-FC | E180: [406-BBGR] | F180: 940 | H180: 0
A181: QLogic 57810 Dual Port 10Gb Direct Attach/SFP+ Network Adapter,Full Height,CusKit | B181: 1 | C181: 10L1-LAN10GB | D181: S10L1-T630-LAN10 | E181: [540-BBGS] | F181: 417 | G181: PowerEdge SFP+, 10GbE SR/SX, Optical Tranceiver, LC Connector, for Intel and Broadcom,CusKit | H181: 2 | I181: [407-BBOK]
A184: Additional Card for PCIe Slot 3 (Full height) (CPU2)
A185: T630
A186: None | B186: ="" ->  | C186: ="" ->  | D186: ="" ->  | E186: ="" ->  | F186: ="" ->  | G186: ="" ->  | H186: 0 | I186: ="" -> 
A187: Broadcom 5720 DP 1Gb Network Interface Card,Full Height,CusKit | B187: 1 | C187: 10L1-LAN1GB | D187: S10L1-T630-LAN1 | E187: [540-BBGY] | F187: 35 | H187: 0
A188: Emulex LPE 12002, Dual Port 8Gb Fibre Channel HBA,Full Height,CusKit | B188: 1 | C188: 10L1-FC | D188: S10L1-T630-FC | E188: [406-BBGR] | F188: 940 | H188: 0
A189: QLogic 57810 Dual Port 10Gb Direct Attach/SFP+ Network Adapter,Full Height,CusKit | B189: 1 | C189: 10L1-LAN10GB | D189: S10L1-T630-LAN10 | E189: [540-BBGS] | F189: 417 | G189: PowerEdge SFP+, 10GbE SR/SX, Optical Tranceiver, LC Connector, for Intel and Broadcom,CusKit | H189: 2 | I189: [407-BBOK]
A192: Additional Card for PCIe Slot 4 (Full height) (CPU2)
A193: T630
A194: None | B194: ="" ->  | C194: ="" ->  | D194: ="" ->  | E194: ="" ->  | F194: ="" ->  | G194: ="" ->  | H194: 0 | I194: ="" -> 
A195: Broadcom 5720 DP 1Gb Network Interface Card,Full Height,CusKit | B195: 1 | C195: 10L1-LAN1GB | D195: S10L1-T630-LAN1 | E195: [540-BBGY] | F195: 35 | H195: 0
A196: Emulex LPE 12002, Dual Port 8Gb Fibre Channel HBA,Full Height,CusKit | B196: 1 | C196: 10L1-FC | D196: S10L1-T630-FC | E196: [406-BBGR] | F196: 940 | H196: 0
A197: QLogic 57810 Dual Port 10Gb Direct Attach/SFP+ Network Adapter,Full Height,CusKit | B197: 1 | C197: 10L1-LAN10GB | D197: S10L1-T630-LAN10 | E197: [540-BBGS] | F197: 417 | G197: PowerEdge SFP+, 10GbE SR/SX, Optical Tranceiver, LC Connector, for Intel and Broadcom,CusKit | H197: 2 | I197: [407-BBOK]
A201: Additional Card for PCIe Slot 5 (Full height) (CPU2)
A202: T630
A203: None | B203: ="" ->  | C203: ="" ->  | D203: ="" ->  | E203: ="" ->  | F203: ="" ->  | G203: ="" ->  | H203: 0 | I203: ="" -> 
A204: Broadcom 5720 DP 1Gb Network Interface Card,Full Height,CusKit | B204: 1 | C204: 10L1-LAN1GB | D204: S10L1-T630-LAN1 | E204: [540-BBGY] | F204: 35 | H204: 0
A205: Emulex LPE 12002, Dual Port 8Gb Fibre Channel HBA,Full Height,CusKit | B205: 1 | C205: 10L1-FC | D205: S10L1-T630-FC | E205: [406-BBGR] | F205: 940 | H205: 0
A206: QLogic 57810 Dual Port 10Gb Direct Attach/SFP+ Network Adapter,Full Height,CusKit | B206: 1 | C206: 10L1-LAN10GB | D206: S10L1-T630-LAN10 | E206: [540-BBGS] | F206: 417 | G206: PowerEdge SFP+, 10GbE SR/SX, Optical Tranceiver, LC Connector, for Intel and Broadcom,CusKit | H206: 2 | I206: [407-BBOK]
A209: Additional Card for PCIe Slot 6 (Full height) (CPU2)
A210: T630
A211: None | B211: ="" ->  | C211: ="" ->  | D211: ="" ->  | E211: ="" ->  | F211: ="" ->  | G211: ="" ->  | H211: 0 | I211: ="" -> 
A212: Broadcom 5720 DP 1Gb Network Interface Card,Full Height,CusKit | B212: 1 | C212: 10L1-LAN1GB | D212: S10L1-T630-LAN1 | E212: [540-BBGY] | F212: 35 | H212: 0
A213: Emulex LPE 12002, Dual Port 8Gb Fibre Channel HBA,Full Height,CusKit | B213: 1 | C213: 10L1-FC | D213: S10L1-T630-FC | E213: [406-BBGR] | F213: 940 | H213: 0
A214: QLogic 57810 Dual Port 10Gb Direct Attach/SFP+ Network Adapter,Full Height,CusKit | B214: 1 | C214: 10L1-LAN10GB | D214: S10L1-T630-LAN10 | E214: [540-BBGS] | F214: 417 | G214: PowerEdge SFP+, 10GbE SR/SX, Optical Tranceiver, LC Connector, for Intel and Broadcom,CusKit | H214: 2 | I214: [407-BBOK]

Sheet Servizi Opzionali (hidden)
A1: Warranty Upgrades | G1: Protezione dei dati - Keep Your Hard Drive
A2: DL560
A3: None | B3: ="" ->  | C3: ="" ->  | D3: ="" ->  | E3: ="" ->  | F3: ="" ->  | I3: =IF(($A$22=$A$12),"",IF($A$8=$A$3,I13,IF($A$8=$A$4,I14,IF($A$8=$A$5,I15)))) ->  | J3: =IF(($A$22=$A$12),"",IF($A$8=$A$3,J13,IF($A$8=$A$4,J14,IF($A$8=$A$5,J15)))) ->  | K3: =IF(($A$22=$A$12),"",IF($A$8=$A$3,K13,IF($A$8=$A$4,K14,IF($A$8=$A$5,K15)))) ->  | L3: =IF(($A$22=$A$12),"",IF($A$8=$A$3,L13,IF($A$8=$A$4,L14,IF($A$8=$A$5,L15)))) ->  | M3: =IF(($A$22=$A$12),"",IF($A$8=$A$3,M13,IF($A$8=$A$4,M14,IF($A$8=$A$5,M15)))) -> 
A4: Estensione della manutenzione in garanzia per ulteriori 12 mesi | B4: 1 | C4: TS1L4-4ANNI | D4: TS1L4-4ANNI | E4: ="" ->  | F4: 327
A5: Estensione della manutenzione in garanzia per ulteriori 24 mesi | B5: 1 | C5: TS1L4-5ANNI | D5: TS1L4-5ANNI | E5: ="" ->  | F5: 610
A7: Estensione Garanzia Selezionata
A8: ='Lotto4 Blade 2P'!$B$66 -> None | C8: DL560
A9: =#REF! ->  | C9: DL560 2
A10: =#REF! ->  | C10: DL560 3
A12: None | B12: ="" ->  | C12: ="" ->  | D12: ="" ->  | E12: ="" ->  | F12: ="" ->  | H12: None
A13: =IF($A$8=$A$3,H13,IF($A$8=$A$4,H14,IF($A$8=$A$5,H15))) -> 3Yr Data Protection - Keep Your Hard Drive | B13: 1 | C13: 10L2-SO-HDD | D13: S10L2-DL560-S-HDD | E13: =IF($A$8=$A$3,L13,IF($A$8=$A$4,L14,IF($A$8=$A$5,L15))) ->  | F13: 300 | H13: 3Yr Data Protection - Keep Your Hard Drive | I13: 1 | J13: 10L2-SO-HDD | K13: S10L2-DL560-S-HDD | L13: ="" ->  | M13: 300
A14: None | B14: ="" ->  | C14: ="" ->  | D14: ="" ->  | E14: ="" ->  | F14: ="" ->  | H14: 4Yr Data Protection - Keep Your Hard Drive | I14: =I13 -> 1 | J14: =J13 -> 10L2-SO-HDD | K14: =K13 -> S10L2-DL560-S-HDD | L14: ="" ->  | M14: =M13 -> 300
A15: =IF(A9=A3,H13,IF(A9=A4,H14,IF(A9=A5,H15))) ->  | B15: 1 | C15: 10L2-SO-HDD | D15: S10L2-DL560-S-HDD | E15: =IF(A9=A3,L13,IF(A9=A4,L14,IF(A9=A5,L15))) ->  | F15: 300 | H15: 5Yr Data Protection - Keep Your Hard Drive | I15: =I13 -> 1 | J15: =J13 -> 10L2-SO-HDD | K15: =K13 -> S10L2-DL560-S-HDD | L15: ="" ->  | M15: =M13 -> 300
A16: None | B16: ="" ->  | C16: ="" ->  | D16: ="" ->  | E16: ="" ->  | F16: ="" -> 
A17: =IF(A10=A3,H13,IF(A10=A4,H14,IF(A10=A5,H15))) ->  | B17: 1 | C17: 10L2-SO-HDD | D17: S10L2-DL560-S-HDD | E17: =IF(A10=A3,L13,IF(A10=A4,L14,IF(A10=A5,L15))) ->  | F17: 300
A21: Protezione dei dati Selezionata
A22: ='Lotto4 Blade 2P'!#REF! -> 
A24: Servizio Specialistico di System and Network Management per sistema opertivo Windows, erogato on site. | B24: 1 | C24: 10L2-SO-WIN | D24: S10L1-R630-S-WIN | F24: 200
A25: Servizio Specialistico di System and Network Management per sistema opertivo Linux, erogato on site. | B25: 1 | C25: 10L2-SO-LINUX | D25: S10L1-R630-S-LINUX | F25: 200
A27: None | B27: ="" ->  | C27: ="" ->  | D27: ="" ->  | E27: ="" ->  | F27: ="" -> 
A28: =IF('Lotto4 Blade 2P'!$C$13>=5,H28,"None") -> None | B28: =IF('Lotto4 Blade 2P'!$C$13>=5,I28,"") ->  | C28: =IF('Lotto4 Blade 2P'!$C$13>=5,J28,"") ->  | D28: =IF('Lotto4 Blade 2P'!$C$13>=5,K28,"") ->  | E28: =IF('Lotto4 Blade 2P'!$C$13>=5,L28,"") ->  | F28: =IF('Lotto4 Blade 2P'!$C$13>=5,M28,"") ->  | H28: Servizi di manutenzione preventiva | I28: 1 | J28: 10L1-SO-PREV | K28: S10L1-T630-S-PREV | M28: 200
A30: Warranty Upgrades | G30: Protezione dei dati - Keep Your Hard Drive
A31: DL580
A32: None | B32: ="" ->  | C32: ="" ->  | D32: ="" ->  | E32: ="" ->  | F32: ="" ->  | I32: =IF(($A$22=$A$12),"",IF($A$8=$A$3,I42,IF($A$8=$A$4,I43,IF($A$8=$A$5,I44)))) ->  | J32: =IF(($A$22=$A$12),"",IF($A$8=$A$3,J42,IF($A$8=$A$4,J43,IF($A$8=$A$5,J44)))) ->  | K32: =IF(($A$22=$A$12),"",IF($A$8=$A$3,K42,IF($A$8=$A$4,K43,IF($A$8=$A$5,K44)))) ->  | L32: =IF(($A$22=$A$12),"",IF($A$8=$A$3,L42,IF($A$8=$A$4,L43,IF($A$8=$A$5,L44)))) ->  | M32: =IF(($A$22=$A$12),"",IF($A$8=$A$3,M42,IF($A$8=$A$4,M43,IF($A$8=$A$5,M44)))) -> 
A33: 4Yr Warranty upgrade | B33: 1 | C33: 10L2-SO-12M | D33: S10L2-DL580-S-12M | E33: ="" ->  | F33: 350
A34: 5Yr Warranty upgrade | B34: 1 | C34: 10L2-SO-24M | D34: S10L1-DL580-S-24M | E34: ="" ->  | F34: 700
A36: Estensione Garanzia Selezionata
A37: =Chassis!#REF! ->  | C37: DL580
A38: =#REF! ->  | C38: DL580 2
A39: =#REF! ->  | C39: DL580 3
A41: None | B41: ="" ->  | C41: ="" ->  | D41: ="" ->  | E41: ="" ->  | F41: ="" ->  | H41: None
A42: =IF($A$37=$A$32,H42,IF($A$37=$A$33,H43,IF($A$37=$A$34,H44))) ->  | B42: 1 | C42: 10L2-SO-HDD | D42: S10L2-DL580-S-HDD | E42: =IF($A$37=$A$32,L42,IF($A$37=$A$33,L43,IF($A$37=$A$34,L44))) ->  | F42: 300 | H42: 3Yr Data Protection - Keep Your Hard Drive | I42: 1 | J42: 10L2-SO-HDD | K42: S10L2-DL580-S-HDD | L42: [733-10057] | M42: 300
A43: None | B43: ="" ->  | C43: ="" ->  | D43: ="" ->  | E43: ="" ->  | F43: ="" ->  | H43: 4Yr Data Protection - Keep Your Hard Drive | I43: =I42 -> 1 | J43: =J42 -> 10L2-SO-HDD | K43: =K42 -> S10L2-DL580-S-HDD | L43: [733-10058] | M43: =M42 -> 300
A44: =IF(A38=A32,H42,IF(A38=A33,H43,IF(A38=A34,H44))) ->  | B44: 1 | C44: 10L2-SO-HDD | D44: S10L2-DL580-S-HDD | E44: =IF(A38=A32,L42,IF(A38=A33,L43,IF(A38=A34,L44))) ->  | F44: 300 | H44: 5Yr Data Protection - Keep Your Hard Drive | I44: =I42 -> 1 | J44: =J42 -> 10L2-SO-HDD | K44: =K42 -> S10L2-DL580-S-HDD | L44: [733-10059] | M44: =M42 -> 300
A45: None | B45: ="" ->  | C45: ="" ->  | D45: ="" ->  | E45: ="" ->  | F45: ="" -> 
A46: =IF(A39=A32,H42,IF(A39=A33,H43,IF(A39=A34,H44))) ->  | B46: 1 | C46: 10L2-SO-HDD | D46: S10L2-DL580-S-HDD | E46: =IF(A39=A32,L42,IF(A39=A33,L43,IF(A39=A34,L44))) ->  | F46: 300
A50: Protezione dei dati Selezionata
A51: =Chassis!#REF! -> 
A53: Servizio Specialistico di System and Network Management per sistema opertivo Windows, erogato on site. | B53: 1 | C53: 10L2-SO-WIN | D53: S10L1-R730xd-S-WIN | F53: 200
A54: Servizio Specialistico di System and Network Management per sistema opertivo Linux, erogato on site. | B54: 1 | C54: 10L2-SO-LINUX | D54: S10L1-R730xd-S-LINUX | F54: 200
A56: None | B56: ="" ->  | C56: ="" ->  | D56: ="" ->  | E56: ="" ->  | F56: ="" -> 
A57: =IF(Chassis!$C$17>=5,H57,"None") -> None | B57: =IF(Chassis!$C$17>=5,I57,"") ->  | C57: =IF(Chassis!$C$17>=5,J57,"") ->  | D57: =IF(Chassis!$C$17>=5,K57,"") ->  | E57: =IF(Chassis!$C$17>=5,L57,"") ->  | F57: =IF(Chassis!$C$17>=5,M57,"") ->  | H57: Servizi di manutenzione preventiva | I57: 1 | J57: 10L2-SO-PREV | K57: S10L2-DL580-S-PREV | M57: 200
A60: Warranty Upgrades | G60: Protezione dei dati - Keep Your Hard Drive
A61: T630
A62: None | B62: ="" ->  | C62: ="" ->  | D62: ="" ->  | E62: ="" ->  | F62: ="" ->  | I62: =IF(($A$22=$A$12),"",IF($A$8=$A$3,I70,IF($A$8=$A$4,I71,IF($A$8=$A$5,I72)))) ->  | J62: =IF(($A$22=$A$12),"",IF($A$8=$A$3,J70,IF($A$8=$A$4,J71,IF($A$8=$A$5,J72)))) ->  | K62: =IF(($A$22=$A$12),"",IF($A$8=$A$3,K70,IF($A$8=$A$4,K71,IF($A$8=$A$5,K72)))) ->  | L62: =IF(($A$22=$A$12),"",IF($A$8=$A$3,L70,IF($A$8=$A$4,L71,IF($A$8=$A$5,L72)))) ->  | M62: =IF(($A$22=$A$12),"",IF($A$8=$A$3,M70,IF($A$8=$A$4,M71,IF($A$8=$A$5,M72)))) -> 
A63: 4Yr Warranty upgrade | B63: 1 | C63: 10L1-SO-12M-T | D63: S10L1-T630-S-12M | E63: ="" ->  | F63: 175
A64: 5Yr Warranty upgrade | B64: 1 | C64: 10L1-SO-24M-T | D64: S10L1-T630-S-24M | E64: ="" ->  | F64: 350
A66: Estensione Garanzia Selezionata
A67: =#REF! -> 
A69: None | B69: ="" ->  | C69: ="" ->  | D69: ="" ->  | E69: ="" ->  | F69: ="" ->  | H69: None
A70: =IF($A$67=$A$62,H70,IF($A$67=$A$63,H71,IF($A$67=$A$64,H72))) ->  | B70: 1 | C70: 10L1-SO-HDD | D70: S10L1-T630-S-HDD | E70: =IF($A$67=$A$62,L70,IF($A$67=$A$63,L71,IF($A$67=$A$64,L72))) ->  | F70: 150 | H70: 3Yr Data Protection - Keep Your Hard Drive | I70: 1 | J70: 10L1-SO-HDD | K70: S10L1-T630-S-HDD | L70: [733-10057] | M70: 150
H71: 4Yr Data Protection - Keep Your Hard Drive | I71: =I70 -> 1 | J71: =J70 -> 10L1-SO-HDD | K71: =K70 -> S10L1-T630-S-HDD | L71: [733-10058] | M71: =M70 -> 150
H72: 5Yr Data Protection - Keep Your Hard Drive | I72: =I70 -> 1 | J72: =J70 -> 10L1-SO-HDD | K72: =K70 -> S10L1-T630-S-HDD | L72: [733-10059] | M72: =M70 -> 150
A74: Protezione dei dati Selezionata
A75: =#REF! -> 
A77: Servizio Specialistico di System and Network Management per sistema opertivo Windows, erogato on site. | B77: 1 | C77: 10L1-SO-WIN | D77: S10L1-T630-S-WIN | F77: 193
A78: Servizio Specialistico di System and Network Management per sistema opertivo Linux, erogato on site. | B78: 1 | C78: 10L1-SO-LINUX | D78: S10L1-T630-S-LINUX | F78: 193
A80: None | B80: ="" ->  | C80: ="" ->  | D80: ="" ->  | E80: ="" ->  | F80: ="" -> 
A81: =IF(#REF!>=5,H81,"None") ->  | B81: =IF(#REF!>=5,I81,"") ->  | C81: =IF(#REF!>=5,J81,"") ->  | D81: =IF(#REF!>=5,K81,"") ->  | E81: =IF(#REF!>=5,L81,"") ->  | F81: =IF(#REF!>=5,M81,"") ->  | H81: Servizi di manutenzione preventiva | I81: 1 | J81: 10L1-SO-PREV | K81: S10L1-T630-S-PREV | M81: 193
